{"text_format":"1","workbook":"xlsx","n_sheets":14,"sheets":["1. Information Sheet","4. Hidden","5. 2014 Continuity Schedule","6. Billing Det. for Def-Var","6. hidden","7. Allocating Def-Var Balances","8. Calculation of Def-Var RR","9. STS - Billing Det & Rate HID","14. RTSR RRR Data Copy","24. hidden","26. Hidden","14. Bill Impacts","lists","Sheet1"],"not_rendered":{"charts":0,"images":3,"macros":1,"external_links":4,"defined_names":228,"comments":0,"pivot_tables":0},"unopened":[],"bounds":{"document_bytes":16777216,"sheet_cells":100000,"rows_first":2000,"rows_last":500,"rows_between":2000,"halvings":0,"cell_chars":16384,"cell_head_chars":4096},"cells_cut":0,"cells_raw":0,"read":"whole","date_system":"1900"}

{"sheet":"1. Information Sheet","index":0,"n_rows":44,"n_cols":27,"rows_kept":44,"cut":false,"hidden":false,"merged":[[43,0,43,6],[21,5,21,9],[19,5,19,9],[13,5,13,11],[15,5,15,9],[17,5,17,9],[36,2,36,11],[38,2,38,13],[40,2,40,12],[23,5,23,9],[27,5,27,7],[29,5,29,7],[29,0,29,4],[25,5,25,9],[31,0,31,4],[31,5,31,7]]}
[null,null,null,null,null,null,null,null,null,null,null,null,null,null,null,null,null,null,null,null,"a",null,null,null,null,null,{"$f":"IF(OR(F16=\"\", F16=\"(if applicable)\"), F14, F14 & \" - \" & F16)","v":"Essex Powerlines Corporation - Amherstburg, LaSalle, Leamington, Tecumseh"}]
[]
[]
[]
[]
[]
[]
[]
[]
[]
[]
[null,null,null,null,null,null,null,null,null,null,null,null,"Version",1.1000000000000001]
[]
[null,null,null,null,"Utility Name   ","Essex Powerlines Corporation"]
[]
[null,null,null,null,"Service Territory","Amherstburg, LaSalle, Leamington, Tecumseh"]
[]
[null,null,null,null,"Assigned EB Number","EB-2014-0072"]
[]
[null,null,null,null,"Name of Contact and Title","Richard Dimmel, VP Regulatory Affairs"]
[]
[null,null,null,null,"Phone Number   ","519-737-9811 ext 214"]
[]
[null,null,null,null,"Email Address   ","rdimmel@essexpowerlines.ca"]
[]
[null,null,null,null,"We are applying for rates effective   ","2015-05-01"]
[]
[null,null,null,null,"Rate-Setting Method","Price Cap IR"]
[]
["Please indicate in which Rate Year the Group 1 accounts were last cleared1",null,null,null,null,2014]
[]
["Please indicate the last Cost of Service \nRe-Basing Year",null,null,null,null,2010]
[]
[]
[null,"Notes"]
[]
[null,null,"Pale green cells represent input cells."]
[]
[null,null,"Pale blue cells represent drop-down lists.  The applicant should select the appropriate item from the drop-down list."]
[]
[null,null,"White cells contain fixed values, automatically generated values or formulae. "]
[]
[]
["Note:  \n1.  Rate year of application"]

{"sheet":"4. Hidden","index":1,"n_rows":210,"n_cols":18,"rows_kept":210,"cut":false,"hidden":true,"merged":[[43,1,46,8],[48,1,48,6],[49,1,49,6],[50,1,50,6],[51,1,51,6],[23,1,23,8],[25,1,30,8],[33,1,35,8],[36,1,39,8],[40,1,42,8],[52,1,52,6],[58,1,58,6],[53,1,53,6],[54,1,54,6],[55,1,55,6],[56,1,56,6],[71,1,71,6],[72,1,72,6],[65,1,65,6],[63,1,63,6],[57,1,57,6],[59,1,59,6],[62,1,62,6],[64,1,64,6],[66,1,66,6],[60,1,60,6],[61,1,61,6],[75,1,75,6],[76,1,76,6],[67,1,67,6],[68,1,68,6],[69,1,69,6],[70,1,70,6],[106,1,109,8],[111,1,111,6],[112,1,112,6],[83,1,83,6],[80,1,80,6],[81,1,81,6],[82,1,82,6],[77,1,77,6],[73,1,73,6],[74,1,74,6],[113,1,113,6],[114,1,114,6],[86,1,86,8],[88,1,93,8],[96,1,98,8],[99,1,102,8],[103,1,105,8],[120,1,120,6],[121,1,121,6],[122,1,122,6],[123,1,123,6],[124,1,124,6],[115,1,115,6],[116,1,116,6],[117,1,117,6],[118,1,118,6],[119,1,119,6],[130,1,130,6],[131,1,131,6],[132,1,132,6],[133,1,133,6],[134,1,134,6],[125,1,125,6],[126,1,126,6],[127,1,127,6],[128,1,128,6],[129,1,129,6],[140,1,140,6],[143,1,143,6],[144,1,144,6],[145,1,145,6],[146,1,146,6],[135,1,135,6],[136,1,136,6],[137,1,137,6],[138,1,138,6],[139,1,139,6],[169,1,172,8],[174,1,174,6],[175,1,175,6],[176,1,176,6],[177,1,177,6],[149,1,149,8],[151,1,156,8],[159,1,161,8],[162,1,165,8],[166,1,168,8],[183,1,183,6],[184,1,184,6],[185,1,185,6],[186,1,186,6],[187,1,187,6],[178,1,178,6],[179,1,179,6],[180,1,180,6],[181,1,181,6],[182,1,182,6],[193,1,193,6],[194,1,194,6],[195,1,195,6],[196,1,196,6],[197,1,197,6],[188,1,188,6],[189,1,189,6],[190,1,190,6],[191,1,191,6],[192,1,192,6],[203,1,203,6],[206,1,206,6],[207,1,207,6],[208,1,208,6],[209,1,209,6],[198,1,198,6],[199,1,199,6],[200,1,200,6],[201,1,201,6],[202,1,202,6]]}
[null,null,null,null,null,null,null,null,null,null,null,null,"Current Rate Classes","Changed to Rate Classes","Values in A that are NOT in B","Values in B that are Not in A","Count of A","Count of B"]
[null,null,null,null,null,null,null,null,null,null,null,null,"RESIDENTIAL","RESIDENTIAL",null,null,8,8]
[null,null,null,null,null,null,null,null,null,null,null,null,"GENERAL SERVICE LESS THAN 50 KW","GENERAL SERVICE LESS THAN 50 KW"]
[null,null,null,null,null,null,null,null,null,null,null,null,"GENERAL SERVICE 50 TO 2,999 KW","GENERAL SERVICE 50 TO 2,999 KW"]
[null,null,null,null,null,null,null,null,null,null,null,null,"GENERAL SERVICE 3,000 TO 4,999 KW","GENERAL SERVICE 3,000 TO 4,999 KW"]
[null,null,null,null,null,null,null,null,null,null,null,null,"UNMETERED SCATTERED LOAD","UNMETERED SCATTERED LOAD"]
[null,null,null,null,null,null,null,null,null,null,null,null,"SENTINEL LIGHTING","SENTINEL LIGHTING"]
[null,null,null,null,null,null,null,null,null,null,null,null,"STREET LIGHTING","STREET LIGHTING"]
[null,null,null,null,null,null,null,null,null,null,null,null,"microFIT","microFIT"]
[]
[]
[]
[]
[]
[]
[]
[]
[]
[]
[]
[]
[]
[]
["RESIDENTIAL","RESIDENTIAL Service Classification"]
["RESIDENTIAL"]
["RESIDENTIAL"]
["RESIDENTIAL"]
["RESIDENTIAL"]
["RESIDENTIAL"]
["RESIDENTIAL"]
["RESIDENTIAL"]
["RESIDENTIAL","APPLICATION"]
["RESIDENTIAL"]
["RESIDENTIAL"]
["RESIDENTIAL"]
["RESIDENTIAL"]
["RESIDENTIAL"]
["RESIDENTIAL"]
["RESIDENTIAL"]
["RESIDENTIAL"]
["RESIDENTIAL"]
["RESIDENTIAL"]
["RESIDENTIAL"]
["RESIDENTIAL"]
["RESIDENTIAL"]
["RESIDENTIAL"]
["RESIDENTIAL"]
["RESIDENTIAL","MONTHLY RATES AND CHARGES - Delivery Component      (If applicable, Effective Date MUST be included in rate description)"]
["RESIDENTIAL","Service Charge",null,null,null,null,null,"$",12.94]
["RESIDENTIAL"]
["RESIDENTIAL"]
["RESIDENTIAL"]
["RESIDENTIAL"]
["RESIDENTIAL"]
["RESIDENTIAL"]
["RESIDENTIAL"]
["RESIDENTIAL"]
["RESIDENTIAL"]
["RESIDENTIAL"]
["RESIDENTIAL"]
["RESIDENTIAL"]
["RESIDENTIAL"]
["RESIDENTIAL"]
["RESIDENTIAL"]
["RESIDENTIAL"]
["RESIDENTIAL"]
["RESIDENTIAL"]
["RESIDENTIAL"]
["RESIDENTIAL"]
["RESIDENTIAL"]
["RESIDENTIAL"]
["RESIDENTIAL"]
["RESIDENTIAL"]
["RESIDENTIAL"]
["RESIDENTIAL"]
["RESIDENTIAL"]
["RESIDENTIAL"]
["RESIDENTIAL"]
["RESIDENTIAL","MONTHLY RATES AND CHARGES - Regulatory Component"]
["RESIDENTIAL"]
["RESIDENTIAL","Wholesale Market Service Rate",null,null,null,null,null,"$/kWh",4.4000000000000003E-3]
["RESIDENTIAL","Rural or Remote Electricity Rate Protection Charge (RRRP)",null,null,null,null,null,"$/kWh",1.2999999999999999E-3]
["RESIDENTIAL","Standard Supply Service - Administrative Charge (if applicable)",null,null,null,null,null,"$",0.25]
["RESIDENTIAL"]
[]
[]
["STREET LIGHTING","STREET LIGHTING Service Classification"]
["STREET LIGHTING"]
["STREET LIGHTING"]
["STREET LIGHTING"]
["STREET LIGHTING"]
["STREET LIGHTING"]
["STREET LIGHTING"]
["STREET LIGHTING"]
["STREET LIGHTING","APPLICATION"]
["STREET LIGHTING"]
["STREET LIGHTING"]
["STREET LIGHTING"]
["STREET LIGHTING"]
["STREET LIGHTING"]
["STREET LIGHTING"]
["STREET LIGHTING"]
["STREET LIGHTING"]
["STREET LIGHTING"]
["STREET LIGHTING"]
["STREET LIGHTING"]
["STREET LIGHTING"]
["STREET LIGHTING"]
["STREET LIGHTING"]
["STREET LIGHTING"]
["STREET LIGHTING","MONTHLY RATES AND CHARGES - Delivery Component      (If applicable, Effective Date MUST be included in rate description)"]
["STREET LIGHTING"]
["STREET LIGHTING"]
["STREET LIGHTING"]
["STREET LIGHTING"]
["STREET LIGHTING"]
["STREET LIGHTING"]
["STREET LIGHTING"]
["STREET LIGHTING"]
["STREET LIGHTING"]
["STREET LIGHTING"]
["STREET LIGHTING"]
["STREET LIGHTING"]
["STREET LIGHTING"]
["STREET LIGHTING"]
["STREET LIGHTING"]
["STREET LIGHTING"]
["STREET LIGHTING"]
["STREET LIGHTING"]
["STREET LIGHTING"]
["STREET LIGHTING"]
["STREET LIGHTING"]
["STREET LIGHTING"]
["STREET LIGHTING"]
["STREET LIGHTING"]
["STREET LIGHTING"]
["STREET LIGHTING"]
["STREET LIGHTING"]
["STREET LIGHTING"]
["STREET LIGHTING"]
["STREET LIGHTING"]
["STREET LIGHTING","MONTHLY RATES AND CHARGES - Regulatory Component"]
["STREET LIGHTING"]
["STREET LIGHTING","Wholesale Market Service Rate",null,null,null,null,null,"$/kWh",4.4000000000000003E-3]
["STREET LIGHTING","Rural or Remote Electricity Rate Protection Charge (RRRP)",null,null,null,null,null,"$/kWh",1.2999999999999999E-3]
["STREET LIGHTING","Standard Supply Service - Administrative Charge (if applicable)",null,null,null,null,null,"$",0.25]
["STREET LIGHTING"]
[]
[]
["STANDBY POWER","STANDBY POWER Service Classification"]
["STANDBY POWER"]
["STANDBY POWER"]
["STANDBY POWER"]
["STANDBY POWER"]
["STANDBY POWER"]
["STANDBY POWER"]
["STANDBY POWER"]
["STANDBY POWER","APPLICATION"]
["STANDBY POWER"]
["STANDBY POWER"]
["STANDBY POWER"]
["STANDBY POWER"]
["STANDBY POWER"]
["STANDBY POWER"]
["STANDBY POWER"]
["STANDBY POWER"]
["STANDBY POWER"]
["STANDBY POWER"]
["STANDBY POWER"]
["STANDBY POWER"]
["STANDBY POWER"]
["STANDBY POWER"]
["STANDBY POWER"]
["STANDBY POWER","MONTHLY RATES AND CHARGES - Delivery Component      (If applicable, Effective Date MUST be included in rate description)"]
["STANDBY POWER"]
["STANDBY POWER"]
["STANDBY POWER"]
["STANDBY POWER"]
["STANDBY POWER"]
["STANDBY POWER"]
["STANDBY POWER"]
["STANDBY POWER"]
["STANDBY POWER"]
["STANDBY POWER"]
["STANDBY POWER"]
["STANDBY POWER"]
["STANDBY POWER"]
["STANDBY POWER"]
["STANDBY POWER"]
["STANDBY POWER"]
["STANDBY POWER"]
["STANDBY POWER"]
["STANDBY POWER"]
["STANDBY POWER"]
["STANDBY POWER"]
["STANDBY POWER"]
["STANDBY POWER"]
["STANDBY POWER"]
["STANDBY POWER"]
["STANDBY POWER"]
["STANDBY POWER"]
["STANDBY POWER"]
["STANDBY POWER"]
["STANDBY POWER"]
["STANDBY POWER","MONTHLY RATES AND CHARGES - Regulatory Component"]
["STANDBY POWER"]
["STANDBY POWER","Wholesale Market Service Rate",null,null,null,null,null,{"$f":"H81","v":"$/kWh"},4.4000000000000003E-3]
["STANDBY POWER","Rural or Remote Electricity Rate Protection Charge (RRRP)",null,null,null,null,null,"$/kWh",1.2999999999999999E-3]
["STANDBY POWER","Standard Supply Service - Administrative Charge (if applicable)",null,null,null,null,null,"$",0.25]
["STANDBY POWER"]

{"sheet":"5. 2014 Continuity Schedule","index":2,"n_rows":53,"n_cols":59,"rows_kept":53,"cut":false,"hidden":false,"merged":[[18,50,18,53],[18,54,18,56],[18,14,18,23],[18,4,18,13],[18,24,18,36],[18,37,18,49],[19,34,21,34],[19,54,21,54],[19,55,21,55],[19,56,21,56],[19,57,21,57],[19,44,21,44],[19,47,21,47],[19,48,21,48],[19,49,21,49],[19,29,21,29],[19,30,21,30],[19,31,21,31],[19,32,21,32],[19,33,21,33],[19,58,21,58],[19,35,21,35],[19,36,21,36],[19,50,21,50],[19,51,21,51],[19,52,21,52],[19,53,21,53],[19,37,21,37],[19,38,21,38],[19,39,21,39],[19,40,21,40],[19,41,21,41],[19,42,21,42],[19,43,21,43],[19,45,21,45],[19,46,21,46],[19,25,21,25],[19,26,21,26],[19,27,21,27],[19,28,21,28],[19,7,21,7],[19,13,21,13],[19,24,21,24],[19,12,21,12],[19,8,21,8],[19,9,21,9],[19,10,21,10],[19,11,21,11],[19,14,21,14],[19,15,21,15],[19,19,21,19],[19,20,21,20],[19,23,21,23],[14,2,14,3],[46,2,47,3],[19,16,21,16],[19,17,21,17],[19,18,21,18],[19,4,21,4],[19,5,21,5],[19,6,21,6],[19,21,21,21],[19,22,21,22],[19,2,21,2],[19,3,21,3]]}
[]
[]
[]
[]
[]
[]
[]
[]
[]
[]
[]
[]
[]
[]
[null,null,"Please complete the following continuity schedule for the following Deferral / Variance Accounts.  Enter information into green cells only.  \n\nIf you have received approval to dispose of balances from prior years, the starting point for entries in the 2015 DVA schedule below will be the balance sheet date as per your G/L for which you received approval.  For example, if in the 2014 EDR process (CoS or IRM) you received approval for the December 31, 2012 balances, the starting point for your entries below should be the 2011 year.  This will allow for the correct starting point for the 2012 opening balance columns for both principal and interest.\n\nPlease refer to the footnotes for further instructions.\n"]
[]
[]
[]
[null,null,null,null,2010,null,null,null,null,null,null,null,null,null,2011,null,null,null,null,null,null,null,null,null,2012,null,null,null,null,null,null,null,null,null,null,null,null,2013,null,null,null,null,null,null,null,null,null,null,null,null,2014,null,null,null,"Projected Interest on Dec-31-13 Balances",null,null,"2.1.7 RRR"]
[null,null,"Account Descriptions","Account Number","Opening Principal Amounts as of Jan-1-10","Transactions Debit / (Credit) during 2010 excluding interest and adjustments 2","Board-Approved Disposition during 2010","Adjustments during 2010 - other 1","Closing Principal Balance as of Dec-31-10","Opening Interest Amounts as of Jan-1-10","Interest Jan-1 to Dec-31-10","Board-Approved Disposition during 2010","Adjustments during 2010 - other 2","Closing Interest Amounts as of Dec-31-10","Opening Principal Amounts as of Jan-1-11","Transactions Debit / (Credit) during 2011 excluding interest and adjustments 2","Board-Approved Disposition during 2011","Adjustments during 2011 - other 1","Closing Principal Balance as of Dec-31-11","Opening Interest Amounts as of Jan-1-11","Interest Jan-1 to Dec-31-11","Board-Approved Disposition during 2011","Adjustments during 2011 - other 2","Closing Interest Amounts as of Dec-31-11","Opening Principal Amounts as of Jan-1-12","Transactions Debit / (Credit) during 2012 excluding interest and adjustments 2","Board-Approved Disposition during 2012","Other 1 Adjustments during Q1 2012","Other 1 Adjustments during Q2 2012","Other 1 Adjustments during Q3 2012","Other 1 Adjustments during Q4 2012","Closing Principal Balance as of Dec-31-12","Opening Interest Amounts as of Jan-1-12","Interest Jan-1 to Dec-31-12","Board-Approved Disposition during 2012","Adjustments during 2012 - other 1","Closing Interest Amounts as of Dec-31-12","Opening Principal Amounts as of Jan-1-13","Transactions Debit / (Credit) during 2013 excluding interest and adjustments 2","Board-Approved Disposition during 2013","Other 1 Adjustments during Q1 2013","Other 1 Adjustments during Q2 2013","Other 1 Adjustments during Q3 2013","Other 1 Adjustments during Q4 2013","Closing Principal Balance as of Dec-31-13","Opening Interest Amounts as of Jan-1-13","Interest Jan-1 to Dec-31-13","Board-Approved Disposition during 2013","Adjustments during 2013 - other 1","Closing Interest Amounts as of Dec-31-13","Principal Disposition during 2014 - instructed by Board","Interest Disposition during 2014 - instructed by Board","Closing Principal Balances as of Dec 31-13 Adjusted for Dispositions during 2014","Closing Interest Balances as of Dec 31-13 Adjusted for Dispositions during 2014","Projected Interest from Jan 1, 2014 to December 31, 2014 on Dec 31 -13 balance adjusted for disposition during 2014 3","Projected Interest from January 1, 2015 to April 30, 2015 on Dec 31 -13 balance adjusted for disposition during 2014  3","Total Claim","As of Dec 31-13","Variance\nRRR vs. 2013 Balance\n(Principal + Interest)"]
[]
[null,null,null,null,null,null,null,null,null,null,null,null,null,null,null,null,null,null,null,null,null,null,null,null,null,null,null,null,null,null,null,null,null,null,null,null,null,null,null,null,null,null,null,null,null,null,null,null,null,null,null,null,null,null,null,null,"Claim before Forecasted Transactions"]
[null,null,"Group 1 Accounts"]
[1,null,"LV Variance Account",1550,null,null,null,null,{"$f":"E24+F24-G24+H24","v":0},null,null,null,null,{"$f":"J24+K24-L24+M24","v":0},{"$f":"I24","v":0},null,null,null,{"$f":"O24+P24-Q24+R24","v":0},{"$f":"N24","v":0},null,null,null,{"$f":"T24+U24-V24+W24","v":0},{"$f":"S24","v":0},null,null,null,null,null,null,{"$f":"Y24+Z24-AA24+SUM(AB24:AE24)","v":0},{"$f":"X24","v":0},null,null,null,{"$f":"AG24+AH24-AI24+AJ24","v":0},{"$f":"AF24","v":0},null,null,null,null,null,null,{"$f":"AL24+AM24-AN24+SUM(AO24:AR24)","v":0},{"$f":"AK24","v":0},null,null,null,{"$f":"AT24+AU24-AV24+AW24","v":0},null,null,{"$f":"AS24-AY24","v":0},{"$f":"AX24-AZ24","v":0},null,null,{"$f":"SUM(BA24:BD24)","v":0},null,{"$f":"BF24-SUM(AS24,AX24)","v":0}]
[null,null,"Smart Metering Entity Charge Variance",1551,null,null,null,null,null,null,null,null,null,null,null,null,null,null,null,null,null,null,null,null,null,null,null,null,null,null,null,null,null,null,null,null,0,{"$f":"AK25","v":0},null,null,null,null,null,null,{"$f":"AL25+AM25-AN25+SUM(AO25:AR25)","v":0},{"$f":"AK25","v":0},null,null,null,0,null,null,{"$f":"AS25-AY25","v":0},{"$f":"AX25-AZ25","v":0},null,null,{"$f":"SUM(BA25:BD25)","v":0},null,{"$f":"BF25-SUM(AS25,AX25)","v":0}]
[2,null,"RSVA - Wholesale Market Service Charge",1580,null,null,null,null,{"$f":"E26+F26-G26+SUM(H26:H26)","v":0},null,null,null,null,{"$f":"J26+K26-L26+M26","v":0},{"$f":"I26","v":0},null,null,null,{"$f":"O26+P26-Q26+SUM(R26:R26)","v":0},0,null,null,null,{"$f":"T26+U26-V26+W26","v":0},{"$f":"S26","v":0},null,null,null,null,null,null,0,{"$f":"X26","v":0},null,null,null,0,{"$f":"AF26","v":0},null,null,null,null,null,null,0,{"$f":"AK26","v":0},null,null,null,0,null,null,0,0,null,null,{"$f":"SUM(BA26:BD26)","v":0},null,0]
[3,null,"RSVA - Retail Transmission Network Charge",1584,null,null,null,null,0,null,null,null,null,0,0,null,null,null,0,0,null,null,null,0,0,null,null,null,null,null,null,0,0,null,null,null,0,0,null,null,null,null,null,null,0,0,null,null,null,0,null,null,0,0,null,null,0,null,0]
[4,null,"RSVA - Retail Transmission Connection Charge",1586,null,null,null,null,0,null,null,null,null,0,0,null,null,null,0,0,null,null,null,0,0,null,null,null,null,null,null,0,0,null,null,null,0,0,null,null,null,null,null,null,0,0,null,null,null,0,null,null,0,0,null,null,0,null,0]
[5,null,"RSVA - Power (excluding Global Adjustment)",1588,null,null,null,null,0,null,null,null,null,0,0,null,null,null,0,0,null,null,null,0,0,null,null,null,null,null,null,0,0,null,null,null,0,0,null,null,null,null,null,-11598011.789999999,-11598011.789999999,0,null,null,null,0,null,null,-11598011.789999999,0,null,null,-11598011.789999999,null,11598011.789999999]
[6,null,"RSVA - Global Adjustment",1589,null,null,null,null,0,null,null,null,null,0,0,null,null,null,0,0,null,null,null,0,0,null,null,null,null,null,null,0,0,null,null,null,0,0,null,null,null,null,null,11598011.789999999,11598011.789999999,0,null,null,null,0,null,null,11598011.789999999,0,null,null,11598011.789999999,null,-11598011.789999999]
[7,null,"Recovery of Regulatory Asset Balances",1590,null,null,null,null,0,null,null,null,null,0,0,null,null,null,0,0,null,null,null,0,0,null,null,null,null,null,null,0,0,null,null,null,0,0,null,null,null,null,null,null,0,0,null,null,null,0,null,null,0,0,null,null,0,null,0]
[8,null,"Disposition and Recovery/Refund of Regulatory Balances (2008)4",1595,null,null,null,null,0,null,null,null,null,0,{"$f":"I32","v":0},null,null,null,0,0,null,null,null,0,0,null,null,null,null,null,null,0,0,null,null,null,0,0,null,null,null,null,null,null,0,0,null,null,null,0,null,null,0,0,null,null,0,null,0]
[9,null,"Disposition and Recovery/Refund of Regulatory Balances (2009)4",1595,null,null,null,null,0,null,null,null,null,0,{"$f":"I33","v":0},null,null,null,0,0,null,null,null,0,0,null,null,null,null,null,null,0,0,null,null,null,0,0,null,null,null,null,null,null,0,0,null,null,null,0,null,null,0,0,null,null,0,null,0]
[9,null,"Disposition and Recovery/Refund of Regulatory Balances (2010)4",1595,null,null,null,null,0,null,null,null,null,0,{"$f":"I34","v":0},null,null,null,0,0,null,null,null,0,0,null,null,null,null,null,null,0,0,null,null,null,0,0,null,null,null,null,null,null,0,0,null,null,null,0,null,null,0,0,null,null,0,null,0]
[9,null,"Disposition and Recovery/Refund of Regulatory Balances (2011)4",1595,null,null,null,null,0,null,null,null,null,0,{"$f":"I35","v":0},null,null,null,0,0,null,null,null,0,0,null,null,null,null,null,null,0,0,null,null,null,0,0,null,null,null,null,null,null,0,0,null,null,null,0,null,null,0,0,null,null,{"$f":"SUM(BA35:BD35)","v":0},null,0]
[9,null,"Disposition and Recovery/Refund of Regulatory Balances (2012)4",1595,null,null,null,null,0,null,null,null,null,0,{"$f":"I36","v":0},null,null,null,0,{"$f":"N36","v":0},null,null,null,0,{"$f":"S36","v":0},null,null,null,null,null,null,{"$f":"Y36+Z36-AA36+SUM(AB36:AE36)","v":0},{"$f":"X36","v":0},null,null,null,{"$f":"AG36+AH36-AI36+AJ36","v":0},{"$f":"AF36","v":0},null,null,null,null,null,null,{"$f":"AL36+AM36-AN36+SUM(AO36:AR36)","v":0},{"$f":"AK36","v":0},null,null,null,{"$f":"AT36+AU36-AV36+AW36","v":0},null,null,0,0,null,null,{"$f":"SUM(BA36:BD36)","v":0},null,0]
[]
[null,null,"RSVA - Global Adjustment",1589,{"$f":"E30","v":0},0,0,0,0,0,0,0,0,0,0,{"$f":"P30","v":0},0,0,0,0,0,0,0,0,{"$f":"Y30","v":0},{"$f":"Z30","v":0},0,0,0,0,0,{"$f":"AF30","v":0},0,0,0,0,0,0,{"$f":"AM30","v":0},0,0,0,0,11598011.789999999,11598011.789999999,0,0,0,0,0,{"$f":"AY30","v":0},{"$f":"AZ30","v":0},11598011.789999999,0,0,0,11598011.789999999,0,-11598011.789999999]
[null,null,"Total Group 1 Balance excluding Account 1589 - Global Adjustment",null,{"$f":"SUM(E24:E29,E31:E36)","v":0},0,0,0,0,0,0,0,0,0,0,{"$f":"SUM(P24:P29,P31:P36)","v":0},0,0,0,0,0,0,0,0,{"$f":"SUM(Y24:Y29,Y31:Y36)","v":0},{"$f":"SUM(Z24:Z29,Z31:Z36)","v":0},0,0,0,0,0,{"$f":"SUM(AF24:AF29,AF31:AF36)","v":0},0,{"$f":"SUM(AH24:AH29,AH31:AH36)","v":0},0,0,0,0,{"$f":"SUM(AM24:AM29,AM31:AM36)","v":0},0,0,0,0,-11598011.789999999,-11598011.789999999,0,0,0,0,0,{"$f":"SUM(AY24:AY29,AY31:AY36)","v":0},{"$f":"SUM(AZ24:AZ29,AZ31:AZ36)","v":0},-11598011.789999999,0,0,0,-11598011.789999999,0,11598011.789999999]
[null,null,"Total Group 1 Balance",null,{"$f":"SUM(E24:E36)","v":0},0,0,0,0,0,0,0,0,0,0,{"$f":"SUM(P24:P36)","v":0},0,0,0,0,0,0,0,0,{"$f":"SUM(Y24:Y36)","v":0},{"$f":"SUM(Z24:Z36)","v":0},0,0,0,0,0,{"$f":"SUM(AF24:AF36)","v":0},0,0,0,0,0,0,{"$f":"SUM(AM24:AM36)","v":0},0,0,0,0,0,0,0,0,0,0,0,{"$f":"SUM(AY24:AY36)","v":0},{"$f":"SUM(AZ24:AZ36)","v":0},0,0,0,0,0,0,0]
[]
[null,null,"LRAM Variance Account",1568,null,null,null,null,{"$f":"E42+F42-G42+SUM(H42:H42)","v":0},null,null,null,null,{"$f":"J42+K42-L42+M42","v":0},null,null,null,null,{"$f":"O42+P42-Q42+SUM(R42:R42)","v":0},null,null,null,null,{"$f":"T42+U42-V42+W42","v":0},{"$f":"S42","v":0},null,null,null,null,null,null,{"$f":"Y42+Z42-AA42+SUM(AB42:AE42)","v":0},{"$f":"X42","v":0},null,null,null,{"$f":"AG42+AH42-AI42+AJ42","v":0},{"$f":"AF42","v":0},null,null,null,null,null,null,{"$f":"AL42+AM42-AN42+SUM(AO42:AR42)","v":0},{"$f":"AK42","v":0},null,null,null,{"$f":"AT42+AU42-AV42+AW42","v":0},0,0,{"$f":"AS42-AY42","v":0},{"$f":"AX42-AZ42","v":0},null,null,{"$f":"SUM(BA42:BD42)","v":0},null,{"$f":"BF42-SUM(AS42,AX42)","v":0}]
[]
[null,null,"Total including Account 1568",null,{"$f":"E42+E40","v":0},{"$f":"F42+F40","v":0},0,0,0,0,0,0,0,0,0,0,0,0,0,0,0,0,0,0,0,0,0,0,0,0,0,0,0,0,0,0,0,0,0,0,0,0,0,0,0,0,0,0,0,0,0,0,0,0,0,0,0,0,0]
[]
[]
[null,null,"For all Board-Approved dispositions, please ensure that the disposition amount has the same sign (e.g: debit balances are to have a positive figure and credit balance are to have a negative figure) as per the related Board decision."]
[]
[]
[null,1,"Please provide explanations for the nature of the adjustments.  If the adjustment relates to previously Board Approved disposed balances, please provide amounts for adjustments and include supporting documentations."]
[null,2,"For RSVA accounts only, report the net variance to the account during the year.  For all other accounts, record the transactions during the year."]
[null,3,"If the LDC’s rate year begins on January 1, 2015, the projected interest is recorded from January 1, 2014 to December 31, 2014 on the December 31, 2013 balances adjusted for the disposed balances approved by the Board in the 2014 rate decision.  If the LDC’s rate year begins on May 1, 2015, the projected interest is recorded from January 1, 2014 to April 30, 2015 on the December 31, 2013 balances adjusted for the disposed interest balances approved by the Board in the 2014 rate decision."]
[null,4,"Include Account 1595 as part of Group 1 accounts (lines 31, 32, 33 and 34) for review and disposition if the recovery (or refund) period has been completed. If the recovery (or refund) period has not been completed, do not include the respective balance in Account 1595 for disposition at this time."]

{"sheet":"6. Billing Det. for Def-Var","index":3,"n_rows":41,"n_cols":45,"rows_kept":41,"cut":false,"hidden":false,"merged":[[32,1,32,2],[12,0,12,7],[14,4,15,4],[14,5,15,5],[14,7,15,7],[38,0,38,7],[39,0,39,7],[40,0,40,7],[32,3,32,8],[14,15,15,15],[14,13,15,13],[14,11,15,11],[14,12,15,12],[36,0,37,7],[14,8,15,8],[14,6,15,6],[14,10,15,10],[14,9,15,9],[14,14,15,14],[30,1,30,2],[31,1,31,2]]}
[null,null,null,null,null,null,null,null,null,null,null,null,null,null,null,null,null,null,null,null,null,null,null,null,null,null,null,null,null,null,null,null,null,null,null,null,null,null,null,null,null,null,null,null,"As per Section 3.2.3 of the 2015 Filing Requirements for Electricity Distribution Rate Applications, an applicant may elect to dispose of the Group 1 account balances below the threshold.  If doing so, please select YES from the adjacent drop-down cell and also indicate so in the Manager's Summary.  If not, please select NO."]
[]
[]
[]
[]
[]
[]
[]
[]
[]
[]
[]
["In the green shaded cells, enter the most recent Board Approved volumetric forecast.  If there is a material difference between the latest Board-approved volumetric forecast and the most recent 12-month actual volumetric data, use the most recent 12-month actual data.  Do not enter data for the MicroFit class."]
[]
[null,null,null,null,"Billed kWh for Non-RPP Customers","Estimated kW for Non-RPP Customers",null,"1590 Recovery Share Proportion*","1595 Recovery Share Proportion (2008) 1","1595 Recovery Share Proportion (2009) 1","1595 Recovery Share Proportion (2010) 1","1595 Recovery Share Proportion (2011) 1","1595 Recovery Share Proportion (2012) 1","1568 LRAM Variance Account Class Allocation                           ($ amounts)","Number of Customers for Residential and GS<50 classes3"]
["Rate Class","Unit","Metered kWh","Metered kW"]
["RESIDENTIAL","$/kWh",251655122,null,49171885,{"$f":"IF(ISERROR(D17/C17*E17), 0, D17/C17*E17)","v":0},null,null,null,null,null,null,null,null,26303]
["GENERAL SERVICE LESS THAN 50 KW","$/kWh",65841765,null,11417536,0,null,null,null,null,null,null,null,null,1891]
["GENERAL SERVICE 50 TO 2,999 KW","$/kW",170033148,445345,163068096,427102.37425657734]
["GENERAL SERVICE 3,000 TO 4,999 KW","$/kW",null,null,null,0]
["UNMETERED SCATTERED LOAD","$/kWh",1581327,null,309879,0]
["SENTINEL LIGHTING","$/kW",323368,903,45825,127.96558410232305]
["STREET LIGHTING","$/kW",6259173,18995,2238192,6792.3441387544335]
["microFIT"]
[]
[null,"Total",{"$f":"SUM(C17:C24)","v":495693903},{"$f":"SUM(D17:D24)","v":465243},226251413,434022.68397943408,null,0,0,0,0,0,0,0,28194]
[null,null,null,null,null,null,null,null,null,null,null,null,"Balance as per Sheet 5",{"$f":"ROUND('5. 2014 Continuity Schedule'!BE42, 0)","v":0}]
[null,null,null,null,null,null,null,null,null,null,null,null,"Variance",{"$f":"N26-N27","v":0}]
[]
["Threshold Test"]
["Total Claim (including Account 1568)",{"$f":"'5. 2014 Continuity Schedule'!BE44","v":0}]
["Total Claim for Threshold Test (All Group 1 Accounts)",{"$f":"'5. 2014 Continuity Schedule'!BE40","v":0}]
["Threshold Test (Total claim per kWh) 2",{"$f":"IF(ISERROR(B32/C26), 0, B32/C26)","v":0},null,{"$f":"IF(AND(B33>-0.001,B33<0.001),\"Claim does not meet the threshold test.\",\"\")","v":"Claim does not meet the threshold test."}]
[]
[{"$f":"IF(AND(B33>-0.001, B33<0.001), AS1, \"\")","v":"As per Section 3.2.3 of the 2015 Filing Requirements for Electricity Distribution Rate Applications, an applicant may elect to dispose of the Group 1 account balances below the threshold.  If doing so, please select YES from the adjacent drop-down cell and also indicate so in the Manager's Summary.  If not, please select NO."}]
[]
[]
[]
["1 Residual Account balance to be allocated to rate classes in proportion to the recovery share as established when rate riders were implemented."]
["2 The Threshold Test does not include the amount in 1568."]
["3 The proportion of customers for the Residential and GS<50 Classes will be used to allocate Account 1551."]

{"sheet":"6. hidden","index":4,"n_rows":10,"n_cols":15,"rows_kept":10,"cut":false,"hidden":true,"merged":[[0,10,1,10],[0,12,1,12],[0,4,1,4],[0,5,1,5],[0,6,1,6],[0,7,1,7],[0,8,1,8],[0,9,1,9],[0,11,1,11]]}
[null,null,null,null,"Billed kWh for Non-RPP Customers","Estimated kW for Non-RPP Customers","Distribution Revenue 1","1590 Recovery Share Proportion*","1595 Recovery Share Proportion (2008) 2","1595 Recovery Share Proportion (2009) 2","1595 Recovery Share Proportion (2010) 2","1595 Recovery Share Proportion (2011) 2","1568 LRAM Variance Account Class Allocation"]
["Rate Class","Unit","Metered kWh","Metered kW"]
["RESIDENTIAL","$/kWh",251655122,0,49171885,null,0,0,0,0,0,0,0,0,26303]
["GENERAL SERVICE LESS THAN 50 KW","$/kWh",65841765,0,11417536,null,0,0,0,0,0,0,0,0,1891]
["GENERAL SERVICE 50 TO 2,999 KW","$/kW",170033148,445345,163068096,null,0,0,0,0,0,0,0,0,0]
["GENERAL SERVICE 3,000 TO 4,999 KW","$/kW",0,0,0,null,0,0,0,0,0,0,0,0,0]
["UNMETERED SCATTERED LOAD","$/kWh",1581327,0,309879,null,0,0,0,0,0,0,0,0,0]
["SENTINEL LIGHTING","$/kW",323368,903,45825,null,0,0,0,0,0,0,0,0,0]
["STREET LIGHTING","$/kW",6259173,18995,2238192,null,0,0,0,0,0,0,0,0,0]
["microFIT",0,0,0,0,null,0,0,0,0,0,0,0,0,0]

{"sheet":"7. Allocating Def-Var Balances","index":5,"n_rows":32,"n_cols":19,"rows_kept":32,"cut":false,"hidden":false,"merged":[[15,18,16,18],[12,0,13,8],[15,13,16,13],[15,14,16,14],[15,15,16,15],[15,3,16,3],[15,4,16,4],[15,2,16,2],[15,16,16,16],[15,17,16,17]]}
[]
[]
[]
[]
[]
[]
[]
[]
[]
[]
[]
[]
["No input required.  This workshseet allocates the deferral/variance account balances (Group 1, 1589, and 1568) to the appropriate classes as per the EDDVAR Report dated July 31, 2009"]
[]
["Allocation of Group 1 Accounts (including Account 1568)"]
[null,null,"% of  Total kWh","% of  Total non-RPP kWh","% of Customer Numbers **",null,null,null,null,null,null,null,null,"1595                          (2008)","1595                            (2009)","1595                            (2010)","1595                            (2011)","1595\n(2012)",1568]
["Rate Class",null,null,null,null,1550,1551,1580,1584,1586,1588,1589,1590]
[]
["RESIDENTIAL",null,{"$f":"VLOOKUP(A19, '6. Billing Det. for Def-Var'!A17:D24, 3,0)/'6. Billing Det. for Def-Var'!C26","v":0.50768250421672023},{"$f":"VLOOKUP(A19, '6. Billing Det. for Def-Var'!A17:E24, 5,0)/'6. Billing Det. for Def-Var'!E26","v":0.21733294103228429},{"$f":"VLOOKUP(A19, '6. Billing Det. for Def-Var'!A17:O24, 15,0)/'6. Billing Det. for Def-Var'!O26","v":0.93292899198411006},{"$f":"C19* '5. 2014 Continuity Schedule'!BE24","v":0},{"$f":"E19* '5. 2014 Continuity Schedule'!BE25","v":0},{"$f":"C19* '5. 2014 Continuity Schedule'!BE26","v":0},{"$f":"C19* '5. 2014 Continuity Schedule'!BE27","v":0},{"$f":"C19* '5. 2014 Continuity Schedule'!BE28","v":0},{"$f":"C19* '5. 2014 Continuity Schedule'!BE29","v":-5888107.6694822451},{"$f":"D19* '5. 2014 Continuity Schedule'!BE30","v":2520630.0124478079},{"$f":"'6. Billing Det. for Def-Var'!H17* '5. 2014 Continuity Schedule'!BE31","v":0},{"$f":"'6. Billing Det. for Def-Var'!I17* '5. 2014 Continuity Schedule'!BE32","v":0},{"$f":"'6. Billing Det. for Def-Var'!J17* '5. 2014 Continuity Schedule'!BE33","v":0},{"$f":"'6. Billing Det. for Def-Var'!K17* '5. 2014 Continuity Schedule'!BE34","v":0},{"$f":"'6. Billing Det. for Def-Var'!L17* '5. 2014 Continuity Schedule'!BE35","v":0},{"$f":"'6. Billing Det. for Def-Var'!M17* '5. 2014 Continuity Schedule'!BE36","v":0},{"$f":"'6. Billing Det. for Def-Var'!N17","v":0}]
["GENERAL SERVICE LESS THAN 50 KW",null,{"$f":"VLOOKUP(A20, '6. Billing Det. for Def-Var'!A17:D24, 3,0)/'6. Billing Det. for Def-Var'!C26","v":0.13282746590490141},{"$f":"VLOOKUP(A20, '6. Billing Det. for Def-Var'!A17:E24, 5,0)/'6. Billing Det. for Def-Var'!E26","v":5.0463932351220278E-2},{"$f":"VLOOKUP(A20, '6. Billing Det. for Def-Var'!A17:O24, 15,0)/'6. Billing Det. for Def-Var'!O26","v":6.7071008015889902E-2},{"$f":"C20* '5. 2014 Continuity Schedule'!BE24","v":0},{"$f":"E20* '5. 2014 Continuity Schedule'!BE25","v":0},{"$f":"C20* '5. 2014 Continuity Schedule'!BE26","v":0},{"$f":"C20* '5. 2014 Continuity Schedule'!BE27","v":0},{"$f":"C20* '5. 2014 Continuity Schedule'!BE28","v":0},{"$f":"C20* '5. 2014 Continuity Schedule'!BE29","v":-1540534.5156008694},{"$f":"D20* '5. 2014 Continuity Schedule'!BE30","v":585281.28237921512},{"$f":"'6. Billing Det. for Def-Var'!H18* '5. 2014 Continuity Schedule'!BE31","v":0},{"$f":"'6. Billing Det. for Def-Var'!I18* '5. 2014 Continuity Schedule'!BE32","v":0},{"$f":"'6. Billing Det. for Def-Var'!J18* '5. 2014 Continuity Schedule'!BE33","v":0},{"$f":"'6. Billing Det. for Def-Var'!K18* '5. 2014 Continuity Schedule'!BE34","v":0},{"$f":"'6. Billing Det. for Def-Var'!L18* '5. 2014 Continuity Schedule'!BE35","v":0},{"$f":"'6. Billing Det. for Def-Var'!M18* '5. 2014 Continuity Schedule'!BE36","v":0},{"$f":"'6. Billing Det. for Def-Var'!N18","v":0}]
["GENERAL SERVICE 50 TO 2,999 KW",null,{"$f":"VLOOKUP(A21, '6. Billing Det. for Def-Var'!A17:D24, 3,0)/'6. Billing Det. for Def-Var'!C26","v":0.34302045470186066},{"$f":"VLOOKUP(A21, '6. Billing Det. for Def-Var'!A17:E24, 5,0)/'6. Billing Det. for Def-Var'!E26","v":0.72073846451513657},null,{"$f":"C21* '5. 2014 Continuity Schedule'!BE24","v":0},{"$f":"E21* '5. 2014 Continuity Schedule'!BE25","v":0},{"$f":"C21* '5. 2014 Continuity Schedule'!BE26","v":0},{"$f":"C21* '5. 2014 Continuity Schedule'!BE27","v":0},{"$f":"C21* '5. 2014 Continuity Schedule'!BE28","v":0},{"$f":"C21* '5. 2014 Continuity Schedule'!BE29","v":-3978355.2778433403},{"$f":"D21* '5. 2014 Continuity Schedule'!BE30","v":8359133.20895305},{"$f":"'6. Billing Det. for Def-Var'!H19* '5. 2014 Continuity Schedule'!BE31","v":0},{"$f":"'6. Billing Det. for Def-Var'!I19* '5. 2014 Continuity Schedule'!BE32","v":0},{"$f":"'6. Billing Det. for Def-Var'!J19* '5. 2014 Continuity Schedule'!BE33","v":0},{"$f":"'6. Billing Det. for Def-Var'!K19* '5. 2014 Continuity Schedule'!BE34","v":0},{"$f":"'6. Billing Det. for Def-Var'!L19* '5. 2014 Continuity Schedule'!BE35","v":0},{"$f":"'6. Billing Det. for Def-Var'!M19* '5. 2014 Continuity Schedule'!BE36","v":0},{"$f":"'6. Billing Det. for Def-Var'!N19","v":0}]
["GENERAL SERVICE 3,000 TO 4,999 KW",null,{"$f":"VLOOKUP(A22, '6. Billing Det. for Def-Var'!A17:D24, 3,0)/'6. Billing Det. for Def-Var'!C26","v":0},{"$f":"VLOOKUP(A22, '6. Billing Det. for Def-Var'!A17:E24, 5,0)/'6. Billing Det. for Def-Var'!E26","v":0},null,{"$f":"C22* '5. 2014 Continuity Schedule'!BE24","v":0},{"$f":"E22* '5. 2014 Continuity Schedule'!BE25","v":0},{"$f":"C22* '5. 2014 Continuity Schedule'!BE26","v":0},{"$f":"C22* '5. 2014 Continuity Schedule'!BE27","v":0},{"$f":"C22* '5. 2014 Continuity Schedule'!BE28","v":0},{"$f":"C22* '5. 2014 Continuity Schedule'!BE29","v":0},{"$f":"D22* '5. 2014 Continuity Schedule'!BE30","v":0},{"$f":"'6. Billing Det. for Def-Var'!H20* '5. 2014 Continuity Schedule'!BE31","v":0},{"$f":"'6. Billing Det. for Def-Var'!I20* '5. 2014 Continuity Schedule'!BE32","v":0},{"$f":"'6. Billing Det. for Def-Var'!J20* '5. 2014 Continuity Schedule'!BE33","v":0},{"$f":"'6. Billing Det. for Def-Var'!K20* '5. 2014 Continuity Schedule'!BE34","v":0},{"$f":"'6. Billing Det. for Def-Var'!L20* '5. 2014 Continuity Schedule'!BE35","v":0},{"$f":"'6. Billing Det. for Def-Var'!M20* '5. 2014 Continuity Schedule'!BE36","v":0},{"$f":"'6. Billing Det. for Def-Var'!N20","v":0}]
["UNMETERED SCATTERED LOAD",null,{"$f":"VLOOKUP(A23, '6. Billing Det. for Def-Var'!A17:D24, 3,0)/'6. Billing Det. for Def-Var'!C26","v":3.1901280012314372E-3},{"$f":"VLOOKUP(A23, '6. Billing Det. for Def-Var'!A17:E24, 5,0)/'6. Billing Det. for Def-Var'!E26","v":1.3696223855185381E-3},null,{"$f":"C23* '5. 2014 Continuity Schedule'!BE24","v":0},{"$f":"E23* '5. 2014 Continuity Schedule'!BE25","v":0},{"$f":"C23* '5. 2014 Continuity Schedule'!BE26","v":0},{"$f":"C23* '5. 2014 Continuity Schedule'!BE27","v":0},{"$f":"C23* '5. 2014 Continuity Schedule'!BE28","v":0},{"$f":"C23* '5. 2014 Continuity Schedule'!BE29","v":-36999.14216989134},{"$f":"D23* '5. 2014 Continuity Schedule'!BE30","v":15884.896575091929},{"$f":"'6. Billing Det. for Def-Var'!H21* '5. 2014 Continuity Schedule'!BE31","v":0},{"$f":"'6. Billing Det. for Def-Var'!I21* '5. 2014 Continuity Schedule'!BE32","v":0},{"$f":"'6. Billing Det. for Def-Var'!J21* '5. 2014 Continuity Schedule'!BE33","v":0},{"$f":"'6. Billing Det. for Def-Var'!K21* '5. 2014 Continuity Schedule'!BE34","v":0},{"$f":"'6. Billing Det. for Def-Var'!L21* '5. 2014 Continuity Schedule'!BE35","v":0},{"$f":"'6. Billing Det. for Def-Var'!M21* '5. 2014 Continuity Schedule'!BE36","v":0},{"$f":"'6. Billing Det. for Def-Var'!N21","v":0}]
["SENTINEL LIGHTING",null,{"$f":"VLOOKUP(A24, '6. Billing Det. for Def-Var'!A17:D24, 3,0)/'6. Billing Det. for Def-Var'!C26","v":6.5235420093516863E-4},{"$f":"VLOOKUP(A24, '6. Billing Det. for Def-Var'!A17:E24, 5,0)/'6. Billing Det. for Def-Var'!E26","v":2.0254017153917178E-4},null,{"$f":"C24* '5. 2014 Continuity Schedule'!BE24","v":0},{"$f":"E24* '5. 2014 Continuity Schedule'!BE25","v":0},{"$f":"C24* '5. 2014 Continuity Schedule'!BE26","v":0},{"$f":"C24* '5. 2014 Continuity Schedule'!BE27","v":0},{"$f":"C24* '5. 2014 Continuity Schedule'!BE28","v":0},{"$f":"C24* '5. 2014 Continuity Schedule'!BE29","v":-7566.0117137021143},{"$f":"D24* '5. 2014 Continuity Schedule'!BE30","v":2349.0632974599366},{"$f":"'6. Billing Det. for Def-Var'!H22* '5. 2014 Continuity Schedule'!BE31","v":0},{"$f":"'6. Billing Det. for Def-Var'!I22* '5. 2014 Continuity Schedule'!BE32","v":0},{"$f":"'6. Billing Det. for Def-Var'!J22* '5. 2014 Continuity Schedule'!BE33","v":0},{"$f":"'6. Billing Det. for Def-Var'!K22* '5. 2014 Continuity Schedule'!BE34","v":0},{"$f":"'6. Billing Det. for Def-Var'!L22* '5. 2014 Continuity Schedule'!BE35","v":0},{"$f":"'6. Billing Det. for Def-Var'!M22* '5. 2014 Continuity Schedule'!BE36","v":0},{"$f":"'6. Billing Det. for Def-Var'!N22","v":0}]
["STREET LIGHTING",null,{"$f":"VLOOKUP(A25, '6. Billing Det. for Def-Var'!A17:D24, 3,0)/'6. Billing Det. for Def-Var'!C26","v":1.262709297435115E-2},{"$f":"VLOOKUP(A25, '6. Billing Det. for Def-Var'!A17:E24, 5,0)/'6. Billing Det. for Def-Var'!E26","v":9.8924995443011882E-3},null,{"$f":"C25* '5. 2014 Continuity Schedule'!BE24","v":0},{"$f":"E25* '5. 2014 Continuity Schedule'!BE25","v":0},{"$f":"C25* '5. 2014 Continuity Schedule'!BE26","v":0},{"$f":"C25* '5. 2014 Continuity Schedule'!BE27","v":0},{"$f":"C25* '5. 2014 Continuity Schedule'!BE28","v":0},{"$f":"C25* '5. 2014 Continuity Schedule'!BE29","v":-146449.17318995079},{"$f":"D25* '5. 2014 Continuity Schedule'!BE30","v":114733.32634737479},{"$f":"'6. Billing Det. for Def-Var'!H23* '5. 2014 Continuity Schedule'!BE31","v":0},{"$f":"'6. Billing Det. for Def-Var'!I23* '5. 2014 Continuity Schedule'!BE32","v":0},{"$f":"'6. Billing Det. for Def-Var'!J23* '5. 2014 Continuity Schedule'!BE33","v":0},{"$f":"'6. Billing Det. for Def-Var'!K23* '5. 2014 Continuity Schedule'!BE34","v":0},{"$f":"'6. Billing Det. for Def-Var'!L23* '5. 2014 Continuity Schedule'!BE35","v":0},{"$f":"'6. Billing Det. for Def-Var'!M23* '5. 2014 Continuity Schedule'!BE36","v":0},{"$f":"'6. Billing Det. for Def-Var'!N23","v":0}]
["microFIT",null,0,0,0,{"$f":"C26* '5. 2014 Continuity Schedule'!BE24","v":0},{"$f":"E26* '5. 2014 Continuity Schedule'!BE25","v":0},{"$f":"C26* '5. 2014 Continuity Schedule'!BE26","v":0},{"$f":"C26* '5. 2014 Continuity Schedule'!BE27","v":0},{"$f":"C26* '5. 2014 Continuity Schedule'!BE28","v":0},{"$f":"C26* '5. 2014 Continuity Schedule'!BE29","v":0},{"$f":"D26* '5. 2014 Continuity Schedule'!BE30","v":0},{"$f":"'6. Billing Det. for Def-Var'!H24* '5. 2014 Continuity Schedule'!BE31","v":0},{"$f":"'6. Billing Det. for Def-Var'!I24* '5. 2014 Continuity Schedule'!BE32","v":0},{"$f":"'6. Billing Det. for Def-Var'!J24* '5. 2014 Continuity Schedule'!BE33","v":0},{"$f":"'6. Billing Det. for Def-Var'!K24* '5. 2014 Continuity Schedule'!BE34","v":0},{"$f":"'6. Billing Det. for Def-Var'!L24* '5. 2014 Continuity Schedule'!BE35","v":0},{"$f":"'6. Billing Det. for Def-Var'!M24* '5. 2014 Continuity Schedule'!BE36","v":0},{"$f":"'6. Billing Det. for Def-Var'!N24","v":0}]
[]
["Total",null,{"$f":"SUM(C19:C26)","v":1},1,1,0,0,0,0,0,-11598011.789999999,11598011.789999999,0,0,0,0,0,0,0]
[]
[]
["* RSVA - Power (Excluding Global Adjustment)"]
["** Used to allocate Account 1551 as this account records the variances arising from the Smart Metering Entity Charges to Residential and GS<50 customers."]

{"sheet":"8. Calculation of Def-Var RR","index":6,"n_rows":32,"n_cols":11,"rows_kept":32,"cut":false,"hidden":false,"merged":[[31,0,31,10],[16,11,17,11],[16,9,17,9],[16,10,17,10],[11,0,12,6],[16,4,17,4],[16,5,17,5],[16,8,17,8],[16,7,17,7],[16,6,17,6]]}
[]
[]
[]
[]
[]
[]
[]
[]
[]
[]
[]
["Input required at cell C15 only.  This workshseet calculates rate riders related to the Deferral/Variance Account Disposition (if applicable), associated rate riders for the global adjustment account (1589) and Account 1568.  Rate Riders will not be generated for the microFIT class."]
[]
[]
[" Please indicate the Rate Rider Recovery Period (in years)",null,4]
[]
[null,null,null,null," Balance of Accounts Allocated by kWh/kW (RPP) or Distribution Revenue","Deferral/Variance Account Rate Rider","Allocation of Balance in Account 1589","Billed kWh or Estimated kW for Non-RPP Customers","Global Adjustment Rate Rider","Allocation \nof Account 1568","Account 1568 Rate Rider"]
["Rate Class","Unit","Billed kWh","Billed kW        or kVA"]
[]
["RESIDENTIAL","$/kWh",251655122,null,{"$f":"SUM('7. Allocating Def-Var Balances'!F19:K19)+SUM('7. Allocating Def-Var Balances'!M19:R19)","v":-5888107.6694822451},-5.7999999999999996E-3,2520630.0124478079,49171885,1.2800000000000001E-2]
["GENERAL SERVICE LESS THAN 50 KW","$/kWh",65841765,null,{"$f":"SUM('7. Allocating Def-Var Balances'!F20:K20)+SUM('7. Allocating Def-Var Balances'!M20:R20)","v":-1540534.5156008694},-5.7999999999999996E-3,585281.28237921512,11417536,1.2800000000000001E-2]
["GENERAL SERVICE 50 TO 2,999 KW","$/kW",170033148,445345,{"$f":"SUM('7. Allocating Def-Var Balances'!F21:K21)+SUM('7. Allocating Def-Var Balances'!M21:R21)","v":-3978355.2778433403},-2.2332999999999998,8359133.20895305,427102.37425657734,4.8929]
["GENERAL SERVICE 3,000 TO 4,999 KW","$/kW",null,null,{"$f":"SUM('7. Allocating Def-Var Balances'!F22:K22)+SUM('7. Allocating Def-Var Balances'!M22:R22)","v":0},0,0,0,0]
["UNMETERED SCATTERED LOAD","$/kWh",1581327,null,{"$f":"SUM('7. Allocating Def-Var Balances'!F23:K23)+SUM('7. Allocating Def-Var Balances'!M23:R23)","v":-36999.14216989134},-5.7999999999999996E-3,15884.896575091929,309879,1.2800000000000001E-2]
["SENTINEL LIGHTING","$/kW",323368,903,{"$f":"SUM('7. Allocating Def-Var Balances'!F24:K24)+SUM('7. Allocating Def-Var Balances'!M24:R24)","v":-7566.0117137021143},-2.0947,2349.0632974599366,127.96558410232305,4.5891999999999999]
["STREET LIGHTING","$/kW",6259173,18995,{"$f":"SUM('7. Allocating Def-Var Balances'!F25:K25)+SUM('7. Allocating Def-Var Balances'!M25:R25)","v":-146449.17318995079},-1.9275,114733.32634737479,6792.3441387544335,4.2229000000000001]
["microFIT"]
["Total",null,{"$f":"SUM(C20:C27)","v":495693903},{"$f":"SUM(D20:D27)","v":465243},{"$f":"SUM(E20:E27)","v":-11598011.789999999},null,{"$f":"SUM(G20:G27)","v":11598011.789999999},{"$f":"SUM(H20:H27)","v":61333322.683979437},null,{"$f":"SUM(J20:J27)","v":0}]
[]
[]
[]
["One or more rate classes appear to have negligible rate riders in columns F and/or I.  As per Appendix B of the Filing Requirements, please provide details of the Applicant's proposal in the Manager's Summary."]

{"sheet":"9. STS - Billing Det & Rate HID","index":7,"n_rows":24,"n_cols":9,"rows_kept":24,"cut":false,"hidden":true,"merged":[]}
[]
[]
[]
[]
[]
[]
[]
[]
[]
[]
["Shared Tax Savings"]
[{"$f":"\"Enter your \" & '1. Information Sheet'!F32 & \" Board-Approved Billing Determinents into columns B, C and D.\"","v":"Enter your 2010 Board-Approved Billing Determinents into columns B, C and D."}]
[]
[]
[]
["Rate Class","Units","Re-based \nBilled Customers or Connections","Re-based Billed kWh","Re-based Billed kW (if applicable)",null,{"$f":" '1. Information Sheet'!F32 &\" \nBase Monthly \nService Charge\"","v":"2010 \nBase Monthly \nService Charge"},{"$f":" '1. Information Sheet'!F32 &\" \nBase Distribution Volumetric Rate kWh\"","v":"2010 \nBase Distribution Volumetric Rate kWh"},{"$f":" '1. Information Sheet'!F32 &\" \nBase Distribution Volumetric Rate kW\"","v":"2010 \nBase Distribution Volumetric Rate kW"}]
["RESIDENTIAL","$/kWh",25902,271379498,0,null,12.55,1.4800000000000001E-2,0]
["GENERAL SERVICE LESS THAN 50 KW","$/kWh",1852,72012960,0,null,20.59,7.0000000000000001E-3,0]
["GENERAL SERVICE 50 TO 2,999 KW","$/kW",222,196386718,467092,null,300,0,2.8494000000000002]
["GENERAL SERVICE 3,000 TO 4,999 KW","$/kW",0,0,0,null,1993.42,0,1.8485]
["UNMETERED SCATTERED LOAD","$/kWh",151,1605371,0,null,8.91,2.7799999999999998E-2,0]
["SENTINEL LIGHTING","$/kW",168,390941,1076,null,2.0499999999999998,0,5.8682999999999996]
["STREET LIGHTING","$/kW",2643,5929910,18024,null,1.75,0,4.7426000000000004]
["microFIT",0,0,0,0,null,0,0,0]

{"sheet":"14. RTSR RRR Data Copy","index":8,"n_rows":30,"n_cols":10,"rows_kept":30,"cut":false,"hidden":true,"merged":[[11,0,11,11]]}
[]
[]
[]
[]
[]
[]
[]
[]
[]
[]
[]
["In the green shaded cells, enter the most recent reported RRR billing determinants.  Please ensure that billing determinants are non-loss adjusted."]
[]
["Rate Class","Rate Description","Unit","Non-Loss Adjusted Metered kWh","Non-Loss Adjusted Metered kW","Applicable Loss Factor",null,"Load Factor","Loss Adjusted Billed kWh","Billed kW"]
["RESIDENTIAL","Retail Transmission Rate - Network Service Rate","$/kWh",251655122.40000001,0,1.0602]
["RESIDENTIAL","Retail Transmission Rate - Line and Transformation Connection Service Rate","$/kWh",251655122,0,1.0602]
["GENERAL SERVICE LESS THAN 50 KW","Retail Transmission Rate - Network Service Rate","$/kWh",65841765,0,1.0602]
["GENERAL SERVICE LESS THAN 50 KW","Retail Transmission Rate - Line and Transformation Connection Service Rate","$/kWh",65841765,0,1.0602]
["GENERAL SERVICE 50 TO 2,999 KW","Retail Transmission Rate - Network Service Rate","$/kW",46449716,144884,0]
["GENERAL SERVICE 50 TO 2,999 KW","Retail Transmission Rate - Line and Transformation Connection Service Rate","$/kW",46449716,144884,0]
["GENERAL SERVICE 50 TO 2,999 KW","Retail Transmission Rate - Network Service Rate - Interval Metered","$/kW",123583432,300461,0]
["GENERAL SERVICE 50 TO 2,999 KW","Retail Transmission Rate - Line and Transformation Connection Service Rate - Interval Metered","$/kW",123583432,300461,0]
["GENERAL SERVICE 3,000 TO 4,999 KW","Retail Transmission Rate - Network Service Rate","$/kW",0,0,0]
["GENERAL SERVICE 3,000 TO 4,999 KW","Retail Transmission Rate - Line and Transformation Connection Service Rate","$/kW",0,0,0]
["UNMETERED SCATTERED LOAD","Retail Transmission Rate - Network Service Rate","$/kWh",1581327,0,1.0602]
["UNMETERED SCATTERED LOAD","Retail Transmission Rate - Line and Transformation Connection Service Rate","$/kWh",1581327,0,1.0602]
["SENTINEL LIGHTING","Retail Transmission Rate - Network Service Rate","$/kW",323368.2,903,0]
["SENTINEL LIGHTING","Retail Transmission Rate - Line and Transformation Connection Service Rate","$/kW",323368.2,903,0]
["STREET LIGHTING","Retail Transmission Rate - Network Service Rate","$/kW",6259173.4000000004,18995,0]
["STREET LIGHTING","Retail Transmission Rate - Line and Transformation Connection Service Rate","$/kW",6259173.4000000004,18995,0]

{"sheet":"24. hidden","index":9,"n_rows":9,"n_cols":4,"rows_kept":9,"cut":false,"hidden":true,"merged":[]}
["Rate Class","MFC Adjustment from R/C Model","DVR Adjustment from R/C Model"]
["RESIDENTIAL",12.94,null,1.52E-2]
["GENERAL SERVICE LESS THAN 50 KW",33.869999999999997,null,1.1599999999999999E-2]
["GENERAL SERVICE 50 TO 2,999 KW",224.32,null,2.1305999999999998]
["GENERAL SERVICE 3,000 TO 4,999 KW",1473.7,null,1.3666]
["UNMETERED SCATTERED LOAD",9.19,null,2.86E-2]
["SENTINEL LIGHTING",3.29,null,9.4397000000000002]
["STREET LIGHTING",3.18,null,8.6188000000000002]
["microFIT",5.4]

{"sheet":"26. Hidden","index":10,"n_rows":103,"n_cols":4,"rows_kept":103,"cut":false,"hidden":true,"merged":[]}
["RESIDENTIAL","RESIDENTIAL SERVICE CLASSIFICATION","Unit","Rate"]
["RESIDENTIAL"]
["RESIDENTIAL"]
["RESIDENTIAL"]
["RESIDENTIAL"]
["RESIDENTIAL"]
["RESIDENTIAL"]
["RESIDENTIAL"]
["RESIDENTIAL"]
["RESIDENTIAL"]
["RESIDENTIAL"]
[]
["GENERAL SERVICE LESS THAN 50 KW","GENERAL SERVICE LESS THAN 50 KW SERVICE CLASSIFICATION","Unit","Rate"]
["GENERAL SERVICE LESS THAN 50 KW"]
["GENERAL SERVICE LESS THAN 50 KW"]
["GENERAL SERVICE LESS THAN 50 KW"]
["GENERAL SERVICE LESS THAN 50 KW"]
["GENERAL SERVICE LESS THAN 50 KW"]
["GENERAL SERVICE LESS THAN 50 KW"]
["GENERAL SERVICE LESS THAN 50 KW"]
["GENERAL SERVICE LESS THAN 50 KW"]
["GENERAL SERVICE LESS THAN 50 KW"]
["GENERAL SERVICE LESS THAN 50 KW"]
[]
["GENERAL SERVICE 50 TO 2,999 KW","GENERAL SERVICE 50 TO 2,999 KW SERVICE CLASSIFICATION","Unit","Rate"]
["GENERAL SERVICE 50 TO 2,999 KW"]
["GENERAL SERVICE 50 TO 2,999 KW"]
["GENERAL SERVICE 50 TO 2,999 KW"]
["GENERAL SERVICE 50 TO 2,999 KW"]
["GENERAL SERVICE 50 TO 2,999 KW"]
["GENERAL SERVICE 50 TO 2,999 KW"]
["GENERAL SERVICE 50 TO 2,999 KW"]
["GENERAL SERVICE 50 TO 2,999 KW"]
["GENERAL SERVICE 50 TO 2,999 KW"]
["GENERAL SERVICE 50 TO 2,999 KW"]
[]
["GENERAL SERVICE 3,000 TO 4,999 KW","GENERAL SERVICE 3,000 TO 4,999 KW SERVICE CLASSIFICATION","Unit","Rate"]
["GENERAL SERVICE 3,000 TO 4,999 KW"]
["GENERAL SERVICE 3,000 TO 4,999 KW"]
["GENERAL SERVICE 3,000 TO 4,999 KW"]
["GENERAL SERVICE 3,000 TO 4,999 KW"]
["GENERAL SERVICE 3,000 TO 4,999 KW"]
["GENERAL SERVICE 3,000 TO 4,999 KW"]
["GENERAL SERVICE 3,000 TO 4,999 KW"]
["GENERAL SERVICE 3,000 TO 4,999 KW"]
["GENERAL SERVICE 3,000 TO 4,999 KW"]
["GENERAL SERVICE 3,000 TO 4,999 KW"]
[]
["UNMETERED SCATTERED LOAD","UNMETERED SCATTERED LOAD SERVICE CLASSIFICATION","Unit","Rate"]
["UNMETERED SCATTERED LOAD"]
["UNMETERED SCATTERED LOAD"]
["UNMETERED SCATTERED LOAD"]
["UNMETERED SCATTERED LOAD"]
["UNMETERED SCATTERED LOAD"]
["UNMETERED SCATTERED LOAD"]
["UNMETERED SCATTERED LOAD"]
["UNMETERED SCATTERED LOAD"]
["UNMETERED SCATTERED LOAD"]
["UNMETERED SCATTERED LOAD"]
[]
["SENTINEL LIGHTING","SENTINEL LIGHTING SERVICE CLASSIFICATION","Unit","Rate"]
["SENTINEL LIGHTING"]
["SENTINEL LIGHTING"]
["SENTINEL LIGHTING"]
["SENTINEL LIGHTING"]
["SENTINEL LIGHTING"]
["SENTINEL LIGHTING"]
["SENTINEL LIGHTING"]
["SENTINEL LIGHTING"]
["SENTINEL LIGHTING"]
["SENTINEL LIGHTING"]
[]
["STREET LIGHTING","STREET LIGHTING SERVICE CLASSIFICATION","Unit","Rate"]
["STREET LIGHTING"]
["STREET LIGHTING"]
["STREET LIGHTING"]
["STREET LIGHTING"]
["STREET LIGHTING"]
["STREET LIGHTING"]
["STREET LIGHTING"]
["STREET LIGHTING"]
["STREET LIGHTING"]
["STREET LIGHTING"]
[]
["microFIT","microFIT SERVICE CLASSIFICATION","Unit","Rate"]
["microFIT"]
["microFIT"]
["microFIT"]
["microFIT"]
["microFIT"]
["microFIT"]
["microFIT"]
["microFIT"]
["microFIT"]
["microFIT"]
[]
[]
[]
[null,"PROPOSED MONTHLY RATES AND CHARGES - Regulatory Component"]
[]
["Wholesale Market Service Rate","Wholesale Market Service Rate","$/kWh",4.4000000000000003E-3]
["Rural or Remote Electricity Rate Protection Charge (RRRP)","Rural or Remote Electricity Rate Protection Charge (RRRP)","$/kWh",1.2999999999999999E-3]
["Standard Supply Service - Administrative Charge (if applicable)","Standard Supply Service - Administrative Charge (if applicable)","$",0.25]

{"sheet":"14. Bill Impacts","index":11,"n_rows":57,"n_cols":27,"rows_kept":57,"cut":false,"hidden":true,"merged":[[41,6,41,7],[12,0,12,2],[21,6,21,7],[20,1,20,3],[20,4,20,7],[29,6,29,7],[30,6,30,7],[35,6,35,7],[36,6,36,7],[37,6,37,7],[38,6,38,7],[39,6,39,7],[40,6,40,7],[10,0,10,9],[34,6,34,7],[31,6,31,7],[32,6,32,7],[33,6,33,7],[23,6,23,7],[22,6,22,7],[25,6,25,7],[26,6,26,7],[27,6,27,7],[56,0,56,8],[42,6,42,7],[43,6,43,7],[44,6,44,7],[50,6,50,7],[45,6,45,7],[46,6,46,7],[47,6,47,7],[48,6,48,7],[49,6,49,7],[51,6,51,7],[52,6,52,7],[53,6,53,7]]}
[null,null,null,null,null,null,null,null,null,null,null,null,null,null,null,null,null,null,null,null,null,null,null,null,null,{"$f":"MATCH(A13,#REF!, 0)","v":{"$error":"#REF!"}},{"$f":"VLOOKUP(A13, lists!AO:AP,2,0)","v":"kWh"}]
[]
[]
[]
[]
[]
[]
[]
[]
[]
["Choose a Rate Class from the drop-down menu below and click UPDATE.\nFor Street Lighting and USL classes, please ensure that the number of customers is manually entered into cells B30 and B31.  \nClick the UPDATE button to refresh the sheet."]
[]
["RESIDENTIAL",null,null,null,null,{"$f":"IF(ISERROR(SEARCH(\"MicroFit\",A13,1))=FALSE,\"Bill impact presentation for this class does not exist.\", \"\")","v":""}]
[]
["Consumption",{"$f":"730*D15*B17","v":3650000},"kWh",10000,{"$f":"IF(AA1 = \"kWh\", \"\", \"kW\")","v":""}]
["RPP Tier One",600,"kWh",null,1]
["Load Factor",0.5]
["Loss Factor",1]
[]
[]
[null,"CURRENT ESTIMATED BILL",null,null,"PROPOSED ESTIMATED BILL"]
[null,"Volume","Current Rate ($)","Current Charge ($)","Volume","Proposed Rate ($)","Proposed Charge ($)",null,"Change ($)","Change (%)","% of Total RPP Bill","% of Total TOU Bill"]
["Energy First Tier (kWh)",3650000,7.4999999999999997E-2,{"$f":"B23*C23","v":273750},{"$f":"B23","v":3650000},{"$f":"C23","v":7.4999999999999997E-2},{"$f":"E23*F23","v":273750},null,{"$f":"G23-D23","v":0},{"$f":"I23/D23","v":0},{"$f":"G23/G48","v":0.86460785769833803}]
["Energy Second Tier (kWh)",0,8.7999999999999995E-2,{"$f":"B24*C24","v":0},{"$f":"B24","v":0},{"$f":"C24","v":8.7999999999999995E-2},{"$f":"E24*F24","v":0},null,{"$f":"G24-D24","v":0},0,{"$f":"G24/G48","v":0}]
[]
["TOU - Off Peak",{"$f":"0.64*$B$15*$B$18","v":2336000},6.5000000000000002E-2,{"$f":"C26*B26","v":151840},{"$f":"B26","v":2336000},{"$f":"C26","v":6.5000000000000002E-2},{"$f":"F26*E26","v":151840},null,{"$f":"G26-D26","v":0},{"$f":"I26/D26","v":0},null,{"$f":"G26/G54","v":0.44972609595619467}]
["TOU - Mid Peak",{"$f":"0.18*$B$15*$B$18","v":657000},0.1,{"$f":"C27*B27","v":65700},{"$f":"B27","v":657000},{"$f":"C27","v":0.1},{"$f":"F27*E27","v":65700},{"$f":"G27*F27","v":6570},{"$f":"G27-D27","v":0},{"$f":"I27/D27","v":0},null,{"$f":"G27/G54","v":0.19459302228873809}]
["TOU - On Peak",{"$f":"0.18*$B$15*$B$18","v":657000},0.11700000000000001,76869,null,{"$f":"C28","v":0.11700000000000001},{"$f":"F28*E28","v":0},{"$f":"G28*F28","v":0},null,{"$f":"I28/D28","v":0},null,{"$f":"G28/G54","v":0}]
[]
["Service Charge",1,null,0,null,null,{"$f":"F30*E30","v":0},0,null,0,0,0]
["Service Charge Rate Rider(s)",1,0,0,null,0,0,0,null,0,0,0]
["Distribution Volumetric Rate",10000,null,0,{"$f":"B32","v":10000},null,0,0,{"$f":"G32-D32","v":0},0,0,0]
["Low Voltage Volumetric Rate",10000,null,0,null,null,0,0,null,0,0,0]
["Distribution Volumetric Rate Rider(s)",10000,0,0,null,1.2024999999999999,0,0,null,0,{"$f":"G34/G48","v":0},{"$f":"G34/G54","v":0}]
["Total:  Distribution",null,null,{"$f":"ROUND(SUM(D30:D34),2)","v":0},null,null,{"$f":"ROUND(SUM(G30:G34),2)","v":0},null,null,0,{"$f":"G35/G48","v":0},{"$f":"G35/G54","v":0}]
["Total:  Retail Transmission"]
["Sub-Total:  Delivery (Distribution and Retail Transmission)",null,null,{"$f":"SUM(D36,D35)","v":0},null,null,{"$f":"SUM(G36,G35)","v":0},null,null,0,{"$f":"G37/G48","v":0},{"$f":"G37/G54","v":0}]
["Wholesale Market Service Rate ",3650000,0,{"$f":"B38*C38","v":0},null,{"$f":"C38","v":0},{"$f":"E38*F38","v":0},null,null,0,0,0]
["Rural Rate Protection Charge",3650000,0,{"$f":"B39*C39","v":0},3650000,0,{"$f":"E39*F39","v":0},null,{"$f":"G39-D39","v":0},0,0,0]
["Standard Supply Service – Administration Charge (if applicable)",1,0,{"$f":"B40*C40","v":0},1,0,{"$f":"E40*F40","v":0},null,{"$f":"G40-D40","v":0},0,0,0]
["Sub-Total:  Regulatory",null,null,{"$f":"SUM(D38:D40)","v":0},null,null,{"$f":"SUM(G38:H40)","v":0},null,{"$f":"G41-D41","v":0},0,0,0]
["Debt Retirement Charge (DRC)",3650000,7.0000000000000001E-3,{"$f":"B42*C42","v":25550},{"$f":"B42","v":3650000},{"$f":"C42","v":7.0000000000000001E-3},{"$f":"E42*F42","v":25550},null,{"$f":"G42-D42","v":0},{"$f":"I42/D42","v":0},{"$f":"G42/G48","v":8.0696733385178215E-2},{"$f":"G42/G54","v":7.5675064223398147E-2}]
[]
["Total Bill on RPP (before taxes)",null,null,299300,null,null,311325,null,{"$f":"G44-D44","v":12025},{"$f":"I44/D44","v":4.0177079852990308E-2},{"$f":"G44/G48","v":0.98328416912487704}]
["HST",null,0.13,{"$f":"C45*D44","v":38909},null,{"$f":"C45","v":0.13},{"$f":"F45*G44","v":40472.25},null,{"$f":"G45-D45","v":1563.25},{"$f":"I45/D45","v":4.0177079852990308E-2},{"$f":"G45/G48","v":0.12782694198623401}]
["Total Bill (including HST)",null,null,{"$f":"D45+D44","v":338209},null,null,{"$f":"G45+G44","v":351797.25},null,{"$f":"G46-D46","v":13588.25},{"$f":"I46/D46","v":4.0177079852990308E-2},{"$f":"G46/G48","v":1.1111111111111109}]
["Ontario Clean Energy Benefit (OCEB)",null,-0.1,{"$f":"-0.1*D46","v":-33820.9},null,{"$f":"C47","v":-0.1},{"$f":"-0.1*G46","v":-35179.724999999999},null,{"$f":"G47-D47","v":-1358.8249999999971},{"$f":"I47/D47","v":4.0177079852990225E-2},{"$f":"G47/G48","v":-0.1111111111111111}]
["Total Bill on RPP (including OCEB)",null,null,{"$f":"D46+D47","v":304388.09999999998},null,null,{"$f":"G46+G47","v":316617.52500000002},null,{"$f":"G48-D48","v":12229.425000000047},{"$f":"I48/D48","v":4.0177079852990467E-2},{"$f":"G48/G48","v":1}]
[]
["Total Bill on TOU (before taxes)",null,null,319959,null,null,331984,null,{"$f":"G50-D50","v":12025},{"$f":"I50/D50","v":3.7582940314227757E-2},null,{"$f":"G50/G54","v":0.98328416912487704}]
["HST",null,0.13,{"$f":"C51*D50","v":41594.67},null,{"$f":"C51","v":0.13},{"$f":"F51*G50","v":43157.919999999998},null,{"$f":"G51-D51","v":1563.25},{"$f":"I51/D51","v":3.7582940314227764E-2},null,{"$f":"G51/G54","v":0.12782694198623401}]
["Total Bill (including HST)",null,null,{"$f":"D51+D50","v":361553.67},null,null,{"$f":"G51+G50","v":375141.92},null,{"$f":"G52-D52","v":13588.25},{"$f":"I52/D52","v":3.7582940314227764E-2},null,{"$f":"G52/G54","v":1.1111111111111112}]
["Ontario Clean Energy Benefit (OCEB)",null,-0.1,{"$f":"-0.1*D52","v":-36155.366999999998},null,{"$f":"C53","v":-0.1},{"$f":"-0.1*G52","v":-37514.192000000003},null,{"$f":"G53-D53","v":-1358.8250000000044},{"$f":"I53/D53","v":3.7582940314227882E-2},null,{"$f":"G53/G54","v":-0.11111111111111112}]
["Total Bill on TOU (including OCEB)",null,null,{"$f":"D52+D53","v":325398.30299999996},null,null,{"$f":"G52+G53","v":337627.728},null,{"$f":"G54-D54","v":12229.425000000047},{"$f":"I54/D54","v":3.758294031422791E-2},null,{"$f":"G54/G54","v":1}]
[]
[]
["Applicants must provide bill impacts for residential at 800 kWh and GS<50kW at 2000 kWh. In addition, their filing should cover the range that is relevant\nto their service territory, class by class. A general guideline of consumption levels follows:\n\nResidential (kWh) - 100, 250, 500, 800, 1000, 1500, 2000\nGS<50kW (kWh) - 1000, 2000, 5000, 10000, 15000\nGS>50kW (kW) 100, 500, 1000\nLarge User - range appropriate for utility\nStreet/Sentinel Lighting Classes and USL - 150 kWh and 1 kW, range appropriate for utility.\n"]

{"sheet":"lists","index":12,"n_rows":214,"n_cols":55,"rows_kept":214,"cut":false,"hidden":true,"merged":[[12,51,12,52],[1,51,1,52],[0,51,0,52],[11,51,11,52],[10,51,10,52],[9,51,9,52],[8,51,8,52],[7,51,7,52],[5,51,5,52],[4,51,4,52],[3,51,3,52],[2,51,2,52],[6,51,6,52],[13,51,13,52],[14,51,14,52],[15,51,15,52],[16,51,16,52],[17,51,17,52]]}
["DISTRIBUTED GENERATION [DGEN]","Embedded Distributor",{"$f":"COUNTA(B1:B17)","v":4},null,null,null,null,null,"A Standby Service Charge will be applied for a month where standby power is not provided. The applicable rate is the approved Distribution Volumetric Rate of the applicable service class and is applied to gross metered demand or contracted amount, whichever is greater. A monthly administration charge of $200, for simple metering arrangements, or $500, for complex metering arrangements, will also be applied.",null,null,"Loss Factors",null,"Units","Units1","Units2",null,null,null,null,null,null,null,null,null,"Account History","Account set up charge/change of occupancy charge (plus credit agency costs if applicable)","Total Loss Factor – Embedded Distributor – Hydro One Networks Inc.",null,null,null,null,null,null,null,null,null,"Algoma Power Inc.","Algoma Power Inc.",null,"DISTRIBUTED GENERATION [DGEN]","kW",null,null,null,"Sub-Total:  Delivery (Distribution and Retail Transmission)"]
["EMBEDDED DISTRIBUTOR","General Service 3,000 to 4,999 kW",null,null,null,null,null,null,"Distribution Volumetric Rate",null,null,"Total Loss Factor – Primary Metered Customer",null,"$","$/kWh","$",null,null,null,null,null,null,null,null,null,"Account set up charge/change of occupancy charge","Administrative Billing Charge","Total Loss Factor – Primary Metered Customer",null,null,null,null,null,null,null,null,null,"Atikokan Hydro Inc.","Atikokan Hydro Inc.",null,"EMBEDDED DISTRIBUTOR","kW",null,null,null,"Wholesale Market Service Rate ",null,null,{"$f":"AU2*AV2","v":0},{"$f":"AU2","v":0},0,{"$f":"AX2*AY2","v":0},null,{"$f":"AZ2-AW2","v":0},{"$f":"BB2/AW2","v":{"$error":"#DIV/0!"}}]
["EMBEDDED DISTRIBUTOR","General Service 1,000 to 4,999 kW",null,null,null,null,null,null,"Distribution Volumetric Rate - $/kW of contracted amount",null,null,"Total Loss Factor – Primary Metered Customer < 5,000 kW",null,"$/kWh","$/kW","%",null,null,null,null,null,null,"MSC",null,null,"Account set up charge/change of occupancy charge (plus credit agency costs if applicable – Residential)","Bell Canada Pole Rentals","Total Loss Factor – Primary Metered Customer < 5,000 kW",null,null,null,null,null,null,null,null,null,"Bluewater Power Distribution Corporation","Bluewater Power Distribution Corporation",null,"EMBEDDED DISTRIBUTOR","kW",null,null,null,"Rural or Remote Electricity Rate Protection Charge (RRRP)",null,null,{"$f":"AU3*AV3","v":0},0,0,{"$f":"AX3*AY3","v":0},null,{"$f":"AZ3-AW3","v":0},{"$f":"BB3/AW3","v":{"$error":"#DIV/0!"}}]
["FARMS - SINGLE PHASE ENERGY-BILLED [F1]","General Service Equal To Or Greater Than 1,500 kW - Interval Metered",null,null,null,null,null,null,"Distribution Wheeling Service Rate",null,null,"Total Loss Factor – Primary Metered Customer > 5,000 kW",null,"$/kW","$/kVA",null,null,null,null,null,null,null,"SM_Rate_Adder",null,null,"Account set up charge/change of occupancy charge (plus credit agency costs if applicable)","Clearance Pole Attachment charge $/pole/year","Total Loss Factor – Primary Metered Customer > 5,000 kW",null,null,null,null,null,null,null,null,null,"Brant County Power Inc.","Brant County Power Inc.",null,"FARMS - SINGLE PHASE ENERGY-BILLED [F1]","kWh",null,null,null,"Standard Supply Service – Administration Charge (if applicable)",null,null,{"$f":"AU4*AV4","v":0},0,0,{"$f":"AX4*AY4","v":0},null,{"$f":"AZ4-AW4","v":0},{"$f":"BB4/AW4","v":{"$error":"#DIV/0!"}}]
["FARMS - THREE PHASE ENERGY-BILLED [F3]",null,null,null,null,null,null,null,"Electricity Rate",null,null,"Total Loss Factor – Secondary Metered Customer",null,"$/kVA",null,null,null,null,null,null,null,null,"MSC_Rate_Rider_",null,null,"Arrears certificate","Collection of account charge – no disconnection","Total Loss Factor – Secondary Metered Customer",null,null,null,null,null,null,null,null,null,"Brantford Power Inc.","Brantford Power Inc.",null,"FARMS - THREE PHASE ENERGY-BILLED [F3]","kWh",null,null,null,"Sub-Total:  Regulatory",null,null,{"$f":"SUM(AW2:AW4)","v":0},null,null,{"$f":"SUM(AZ2:BA4)","v":0},null,{"$f":"AZ5-AW5","v":0},{"$f":"BB5/AW5","v":{"$error":"#DIV/0!"}}]
["GENERAL SERVICE - COMMERCIAL",null,null,null,null,null,null,null,"Electricity Rate - All Additional kWh",null,null,"Total Loss Factor – Secondary Metered Customer < 5,000 kW",null,null,null,null,null,null,null,null,null,null,"VC",null,null,"Arrears certificate (credit reference)","Collection of account charge – no disconnection – after regular hours","Total Loss Factor – Secondary Metered Customer < 5,000 kW",null,null,null,null,null,null,null,null,null,"Burlington Hydro Inc.","Burlington Hydro Inc.",null,"GENERAL SERVICE - COMMERCIAL","kW",null,null,null,"Debt Retirement Charge (DRC)",null,null,{"$f":"AU6*AV6","v":0},{"$f":"AU6","v":0},{"$f":"AV6","v":0},{"$f":"AX6*AY6","v":0},null,{"$f":"AZ6-AW6","v":0},{"$f":"BB6/AW6","v":{"$error":"#DIV/0!"}}]
["GENERAL SERVICE - INSTITUTIONAL",null,null,null,null,null,null,null,"Electricity Rate - First 250 kWh",null,null,null,null,null,null,null,null,null,null,null,null,null,null,null,null,null,null,null,null,null,null,null,null,null,null,null,null,"Cambridge and North Dumfries Hydro Inc.","Cambridge and North Dumfries Hydro Inc.",null,"GENERAL SERVICE - INSTITUTIONAL","kW"]
["GENERAL SERVICE 1,000 TO 2,999 KW",null,null,null,null,null,null,null,"Electricity Rate -All Additional kWh",null,null,"Total Loss Factor – Secondary Metered Customer > 5,000 kW",null,null,null,null,null,null,null,null,null,null,"VC_Rate_Rider_",null,null,"Charge to certify cheque","Collection of account charge – no disconnection - during regular business hours","Total Loss Factor – Secondary Metered Customer > 5,000 kW",null,null,null,null,null,null,null,null,null,"Canadian Niagara Power Inc.","Canadian Niagara Power Inc.",null,"GENERAL SERVICE 1,000 TO 2,999 KW","kW",null,null,null,"Total Bill on RPP (before taxes)",null,null,null,null,null,null,null,{"$f":"AZ8-AW8","v":0}]
["GENERAL SERVICE 1,000 TO 4,999 KW",null,null,null,null,null,null,null,"Electricity Rate First 1,000 kWh",null,null,"Distribution Loss Factor - Secondary Metered Customer < 5,000 kW",null,null,null,null,null,null,null,null,null,null,"VC_GA_Rate_Rider_kW_",null,null,"Collection of Account Charge – No Disconnection","Collection of account charge – no disconnection – during regular hours",null,null,null,null,null,null,null,null,null,null,"Centre Wellington Hydro Ltd.","Centre Wellington Hydro Ltd.",null,"GENERAL SERVICE 1,000 TO 4,999 KW","kW",null,null,null,"HST",null,null,{"$f":"AV9*AW8","v":0},null,{"$f":"AV9","v":0},{"$f":"AY9*AZ8","v":0},null,{"$f":"AZ9-AW9","v":0},{"$f":"BB9/AW9","v":{"$error":"#DIV/0!"}}]
["GENERAL SERVICE 1,000 TO 4,999 KW - INTERVAL METERS",null,null,null,null,null,null,null,"Electricity Rate First 25,000 kWh",null,null,"Distribution Loss Factor - Secondary Metered Customer > 5,000 kW",null,null,null,null,null,null,null,null,null,null,"VC_LV_Rate",null,null,"Credit Card Convenience Charge","Collection/Disconnection/Load Limiter/Reconnection – if in Community",null,null,null,null,null,null,null,null,null,null,"Chapleau Public Utilities Corporation","Chapleau Public Utilities Corporation",null,"GENERAL SERVICE 1,000 TO 4,999 KW - INTERVAL METERS","kW",null,null,null,"Total Bill (including HST)",null,null,{"$f":"AW9+AW8","v":0},null,null,{"$f":"AZ9+AZ8","v":0},null,{"$f":"AZ10-AW10","v":0},{"$f":"BB10/AW10","v":{"$error":"#DIV/0!"}}]
["GENERAL SERVICE 1,000 TO 4,999 KW (CO-GENERATION)",null,null,null,null,null,null,null,"Electricity Rate First 6,000 kWh",null,null,"Distribution Loss Factor - Primary Metered Customer < 5,000 kW",null,null,null,null,null,null,null,null,null,null,"RTSR_Network",null,null,"Credit check (plus credit agency costs)","Credit Card Convenience Charge",null,null,null,null,null,null,null,null,null,null,"Collus PowerStream Corporation","Collus PowerStream Corporation",null,"GENERAL SERVICE 1,000 TO 4,999 KW (CO-GENERATION)","kW",null,null,null,"Ontario Clean Energy Benefit (OCEB)",null,null,{"$f":"-0.1*AW10","v":0},null,{"$f":"AV11","v":0},{"$f":"-0.1*AZ10","v":0},null,{"$f":"AZ11-AW11","v":0},{"$f":"BB11/AW11","v":{"$error":"#DIV/0!"}}]
["GENERAL SERVICE 1,500 TO 4,999 KW",null,null,null,null,null,null,null,"Electricity Rate Next 1,500 kWh",null,null,"Distribution Loss Factor - Primary Metered Customer > 5,000 kW",null,null,null,null,null,null,null,null,null,null,"RTSR_Connection",null,null,"Credit reference Letter","Disconnect/Reconnect at meter – after regular hours",null,null,null,null,null,null,null,null,null,null,"Cooperative Hydro Embrun Inc.","Cooperative Hydro Embrun Inc.",null,"GENERAL SERVICE 1,500 TO 4,999 KW","kW",null,null,null,"Total Bill on RPP (including OCEB)",null,null,{"$f":"AW10+AW11","v":0},null,null,{"$f":"AZ10+AZ11","v":0},null,{"$f":"AZ12-AW12","v":0},{"$f":"BB12/AW12","v":{"$error":"#DIV/0!"}}]
["GENERAL SERVICE 2,500 TO 4,999 KW",null,null,null,null,null,null,null,"General Service 1,500 to 4,999 kW customer",null,null,null,null,null,null,null,null,null,null,null,null,null,null,null,null,null,null,null,null,null,null,null,null,null,null,null,null,"E.L.K. Energy Inc.","E.L.K. Energy Inc.",null,"GENERAL SERVICE 2,500 TO 4,999 KW","kW"]
["GENERAL SERVICE 3,000 TO 4,999 KW",null,null,null,null,null,null,null,"General Service 50 to 1,499 kW customer",null,null,"Total Loss Factor - Embedded Distributor",null,null,null,null,null,null,null,null,null,null,"RTSR_Network_Interval",null,null,"Credit reference/credit check (plus credit agency costs – General Service)","Disconnect/Reconnect at meter – during regular hours",null,null,null,null,null,null,null,null,null,null,"Enersource Hydro Mississauga Inc.","Enersource Hydro Mississauga Inc.",null,"GENERAL SERVICE 3,000 TO 4,999 KW","kW",null,null,null,"Total Bill on TOU (before taxes)",null,null,null,null,null,null,null,{"$f":"AZ14-AW14","v":0}]
["GENERAL SERVICE 3,000 TO 4,999 KW - INTERMEDIATE USE",null,null,null,null,null,null,null,"General Service Large Use customer",null,null,"Total Loss Factor – Embedded Distributor – Hydro One Networks Inc.",null,null,null,null,null,null,null,null,null,null,"RTSR_Connection_Interval",null,null,"Credit Reference/credit check (plus credit agency costs)","Disconnect/Reconnect at pole – after regular hours",null,null,null,null,null,null,null,null,null,null,"Entegrus Powerlines Inc.","Entegrus Powerlines Inc.",null,"GENERAL SERVICE 3,000 TO 4,999 KW - INTERMEDIATE USE","kW",null,null,null,"HST",null,null,{"$f":"AV15*AW14","v":0},null,{"$f":"AV15","v":0},{"$f":"AY15*AZ14","v":0},null,{"$f":"AZ15-AW15","v":0},{"$f":"BB15/AW15","v":{"$error":"#DIV/0!"}}]
["GENERAL SERVICE 3,000 TO 4,999 KW - INTERVAL METERED",null,null,null,null,null,null,null,"Green Energy Act Initiatives Funding Adder - effective until the date of the next \n      cost of service-based rate order",null,null,null,null,null,null,null,null,null,null,null,null,null,"RTSR_Network_Interval_GR1000kW",null,null,"Dispute Test – Commercial self contained -- MC","Disconnect/Reconnect at pole – during regular hours",null,null,null,null,null,null,null,null,null,null,"Entegrus Powerlines Inc. - Dutton Service Area","Entegrus Powerlines Inc. - Dutton Service Area",null,"GENERAL SERVICE 3,000 TO 4,999 KW - INTERVAL METERED","kW",null,null,null,"Total Bill (including HST)",null,null,{"$f":"AW15+AW14","v":0},null,null,{"$f":"AZ15+AZ14","v":0},null,{"$f":"AZ16-AW16","v":0},{"$f":"BB16/AW16","v":{"$error":"#DIV/0!"}}]
["GENERAL SERVICE 3,000 TO 4,999 KW - TIME OF USE",null,null,null,null,null,null,null,"Green Energy Act Plan Funding Adder",null,null,null,null,null,null,null,null,null,null,null,null,null,"RTSR_Connection_Interval_GR1000kW",null,null,"Dispute Test – Commercial TT -- MC","Disconnect/Reconnect Charge – At Meter – After Hours",null,null,null,null,null,null,null,null,null,null,"Entegrus Powerlines Inc. - former Chatham-Kent Hydro Service Area","Entegrus Powerlines Inc. - former Chatham-Kent Hydro Service Area",null,"GENERAL SERVICE 3,000 TO 4,999 KW - TIME OF USE","kW",null,null,null,"Ontario Clean Energy Benefit (OCEB)",null,null,{"$f":"-0.1*AW16","v":0},null,{"$f":"AV17","v":0},{"$f":"-0.1*AZ16","v":0},null,{"$f":"AZ17-AW17","v":0},{"$f":"BB17/AW17","v":{"$error":"#DIV/0!"}}]
["GENERAL SERVICE 50 TO 1,000 KW",null,null,null,null,null,null,null,"Green Energy Act Plan Funding Adder - effective April 1, 2013 until March 31, 2014",null,null,null,null,null,null,null,null,null,null,null,null,null,"RTSR_Line_Connection",null,null,"Dispute Test – Residential","Disconnect/Reconnect Charge – At Meter – During Regular Hours",null,null,null,null,null,null,null,null,null,null,"Entegrus Powerlines Inc. - Newbury Service Area","Entegrus Powerlines Inc. - Newbury Service Area",null,"GENERAL SERVICE 50 TO 1,000 KW","kW",null,null,null,"Total Bill on TOU (including OCEB)",null,null,{"$f":"AW16+AW17","v":0},null,null,{"$f":"AZ16+AZ17","v":0},null,{"$f":"AZ18-AW18","v":0},{"$f":"BB18/AW18","v":{"$error":"#DIV/0!"}}]
["GENERAL SERVICE 50 TO 1,000 KW - INTERVAL METERS",null,null,null,null,null,null,null,"Green Energy Act Plan Funding Adder - effective April 1, 2014 until March 31, 2015",null,null,null,null,null,null,null,null,null,null,null,null,null,"RTSR_Transformer_Connection",null,null,"Duplicate Invoices for previous billing","Disconnect/Reconnect Charge – At Pole – After Hours",null,null,null,null,null,null,null,null,null,null,"Entegrus Powerlines Inc. - Strathroy, Mount Brydges and Parkhill Service Areas","Entegrus Powerlines Inc. - Strathroy, Mount Brydges and Parkhill Service Areas",null,"GENERAL SERVICE 50 TO 1,000 KW - INTERVAL METERS","kW"]
["GENERAL SERVICE 50 TO 1,000 KW - NON INTERVAL METERS",null,null,null,null,null,null,null,"ICM Rate Rider (2014) - in effect until the effective date of the next cost of service rates",null,null,null,null,null,null,null,null,null,null,null,null,null,"WMSR",null,null,"Easement Letter","Disconnect/Reconnect Charge – At Pole – During Regular Hours",null,null,null,null,null,null,null,null,null,null,"ENWIN Utilities Ltd.","ENWIN Utilities Ltd.",null,"GENERAL SERVICE 50 TO 1,000 KW - NON INTERVAL METERS","kW"]
["GENERAL SERVICE 50 TO 1,499 KW",null,null,null,null,null,null,null,"Low Voltage Service Charge",null,null,null,null,null,null,null,null,null,null,null,null,null,"RRRP",null,null,"Income Tax Letter","Disconnect/Reconnect Charges for non payment of account - At Meter After Hours",null,null,null,null,null,null,null,null,null,null,"Erie Thames Powerlines Corporation","Erie Thames Powerlines Corporation",null,"GENERAL SERVICE 50 TO 1,499 KW","kW"]
["GENERAL SERVICE 50 TO 1,499 KW - INTERVAL METERED",null,null,null,null,null,null,null,"Low Voltage Service Rate",null,null,null,null,null,null,null,null,null,null,null,null,null,"SPC",null,null,"Interval Meter Interrogation","Disconnect/Reconnect charges for non payment of account – at meter after regular hours",null,null,null,null,null,null,null,null,null,null,"Espanola Regional Hydro Distribution Corporation","Espanola Regional Hydro Distribution Corporation",null,"GENERAL SERVICE 50 TO 1,499 KW - INTERVAL METERED","kW"]
["GENERAL SERVICE 50 TO 2,499 KW",null,null,null,null,null,null,null,"Low Voltage Volumetric Rate",null,null,null,null,null,null,null,null,null,null,null,null,null,"DRC",null,null,"Interval meter request change","Disconnect/Reconnect Charges for non payment of account - At Meter During Regular Hours",null,null,null,null,null,null,null,null,null,null,"Essex Powerlines Corporation","Essex Powerlines Corporation",null,"GENERAL SERVICE 50 TO 2,499 KW","kW"]
["GENERAL SERVICE 50 TO 2,999 KW",null,null,null,null,null,null,null,"LRAM Rate Rider - Effective Until April 30, 2015",null,null,null,null,null,null,null,null,null,null,null,null,null,"SSS",null,null,"Legal letter","Disconnect/Reconnect charges for non payment of account – at meter during regular hours",null,null,null,null,null,null,null,null,null,null,"Festival Hydro Inc.","Festival Hydro Inc.",null,"GENERAL SERVICE 50 TO 2,999 KW","kW"]
["GENERAL SERVICE 50 TO 2,999 KW - INTERVAL METERED",null,null,null,null,null,null,null,"Minimum Distribution Charge - per KW of maximum billing demand in the previous 11 months",null,null,null,null,null,null,null,null,null,null,null,null,null,"SFLF",null,null,"Legal letter charge","Disconnect/Reconnect charges for non payment of account – at pole after regular hours",null,null,null,null,null,null,null,null,null,null,"Fort Frances Power Corporation","Fort Frances Power Corporation",null,"GENERAL SERVICE 50 TO 2,999 KW - INTERVAL METERED","kW"]
["GENERAL SERVICE 50 TO 2,999 KW - TIME OF USE","January",null,null,null,null,null,null,"Monthly Distribution Wheeling Service Rate - Dedicated LV Line",null,null,null,null,null,null,null,null,null,null,null,null,null,"DLF_Secondary_LT_5000kW",null,null,"Meter dispute charge plus Measurement Canada fees (if meter found correct)","Disconnect/Reconnect charges for non payment of account – at pole during regular hours",null,null,null,null,null,null,null,null,null,null,"Greater Sudbury Hydro Inc.","Greater Sudbury Hydro Inc.",null,"GENERAL SERVICE 50 TO 2,999 KW - TIME OF USE","kW"]
["GENERAL SERVICE 50 TO 4,999 KW","February",null,null,null,null,null,null,"Monthly Distribution Wheeling Service Rate - Hydro One Networks",null,null,null,null,null,null,null,null,null,null,null,null,null,"DLF_Secondary_GT_5000kW",null,null,"Notification charge","Disconnect/Reconnection for >300 volts - after regular hours",null,null,null,null,null,null,null,null,null,null,"Grimsby Power Inc.","Grimsby Power Inc.",null,"GENERAL SERVICE 50 TO 4,999 KW","kW"]
["GENERAL SERVICE 50 TO 4,999 KW - INTERVAL METERED","March",null,null,null,null,null,null,"Monthly Distribution Wheeling Service Rate - Shared LV Line",null,null,null,null,null,null,null,null,null,null,null,null,null,"DLF_Primary_LT_5000kW",null,null,"Pulling Post Dated Cheques","Disconnect/Reconnection for >300 volts - during regular hours",null,null,null,null,null,null,null,null,null,null,"Guelph Hydro Electric Systems Inc.","Guelph Hydro Electric Systems Inc.",null,"GENERAL SERVICE 50 TO 4,999 KW - INTERVAL METERED","kW"]
["GENERAL SERVICE 50 TO 4,999 KW - TIME OF USE","April",null,null,null,null,null,null,"Monthly Distribution Wheeling Service Rate - Waterloo North Hydro",null,null,null,null,null,null,null,null,null,null,null,null,null,"DLF_Primary_GT_5000kW",null,null,"Request for other billing information","Disposal of Concrete Poles",null,null,null,null,null,null,null,null,null,null,"Haldimand County Hydro Inc.","Haldimand County Hydro Inc.",null,"GENERAL SERVICE 50 TO 4,999 KW - TIME OF USE","kW"]
["GENERAL SERVICE 50 TO 4,999 KW (COGENERATION)","May",null,null,null,null,null,null,"Rate Rider for Application of Tax Change - effective until April 30, 2015",null,null,null,null,null,null,null,null,null,null,null,null,null,"TLF_Secondary_LT_5000kW",null,null,"Returned cheque (plus bank charges)","Dispute Test – Commercial TT -- MC",null,null,null,null,null,null,null,null,null,null,"Halton Hills Hydro Inc.","Halton Hills Hydro Inc.",null,"GENERAL SERVICE 50 TO 4,999 KW (COGENERATION)","kW"]
["GENERAL SERVICE 50 TO 4,999 KW (FORMERLY TIME OF USE)","June",null,null,null,null,null,null,"Rate Rider for Application of Tax Change - effective until December 31, 2014",null,null,null,null,null,null,null,null,null,null,null,null,null,"TLF_Secondary_GT_5000kW",null,null,"Returned cheque charge (plus bank charges)","Install/Remove load control device – after regular hours",null,null,null,null,null,null,null,null,null,null,"Hearst Power Distribution Company Limited","Hearst Power Distribution Company Limited",null,"GENERAL SERVICE 50 TO 4,999 KW (FORMERLY TIME OF USE)","kW"]
["GENERAL SERVICE 50 TO 499 KW","July",null,null,null,null,null,null,"Rate Rider for Application of Tax Change (2014) - effective until April 30, 2015",null,null,null,null,null,null,null,null,null,null,null,null,null,"TLF_Primary_LT_5000kW",null,null,"Special Billing Service (aggregation)","Install/Remove load control device – during regular hours",null,null,null,null,null,null,null,null,null,null,"Horizon Utilities Corporation","Horizon Utilities Corporation",null,"GENERAL SERVICE 50 TO 499 KW","kW"]
["GENERAL SERVICE 50 TO 699 KW","August",null,null,null,null,null,null,"Rate Rider for Application of Tax Change (per connection) - effective until April 30, 2015",null,null,null,null,null,null,null,null,null,null,null,null,null,"TLF_Primary_GT_5000kW",null,null,"Special Billing Service (sub-metering charge per meter)","Interval Meter Interrogation",null,null,null,null,null,null,null,null,null,null,"Hydro 2000 Inc.","Hydro 2000 Inc.",null,"GENERAL SERVICE 50 TO 699 KW","kW"]
["GENERAL SERVICE 50 TO 999 KW","September",null,null,null,null,null,null,"Rate Rider for CGAAP Accounting Changes (2013) - effective until April 30, 2017",null,null,null,null,null,null,null,null,null,null,null,null,null,"TLF_EmbeddedDistributor",null,null,"Special meter reads","Interval Meter Load Management Tool Charge $/month",null,null,null,null,null,null,null,null,null,null,"Hydro Hawkesbury Inc.","Hydro Hawkesbury Inc.",null,"GENERAL SERVICE 50 TO 999 KW","kW"]
["GENERAL SERVICE 50 TO 999 KW - INTERVAL METERED","October",null,null,null,null,null,null,"Rate Rider for Deferral/Variance Account (2012) - effective unitl April 30, 2016",null,null,null,null,null,null,null,null,null,null,null,null,null,null,null,null,"Statement of Account","Interval meter request change",null,null,null,null,null,null,null,null,null,null,"Hydro One Brampton Networks Inc.","Hydro One Brampton Networks Inc.",null,"GENERAL SERVICE 50 TO 999 KW - INTERVAL METERED","kW"]
["GENERAL SERVICE 500 TO 4,999 KW","November",null,null,null,null,null,null,"Rate Rider for Deferral/Variance Account Disposition – effective until April 30, 2015",null,null,null,null,null,null,null,null,null,null,null,null,null,null,null,null,"Unprocessed Payment Charge (plus bank charges)","Late Payment – per annum",null,null,null,null,null,null,null,null,null,null,"Hydro One Networks Inc.","Hydro One Networks Inc.",null,"GENERAL SERVICE 500 TO 4,999 KW","kW"]
["GENERAL SERVICE 700 TO 4,999 KW","December",null,null,null,null,null,null,"Rate Rider for Deferral/Variance Account Disposition (2012) - effective until April 30, 2016",null,null,null,null,null,null,null,null,null,null,null,null,null,null,null,null,null,"Late Payment – per month",null,null,null,null,null,null,null,null,null,null,"Hydro Ottawa Limited","Hydro Ottawa Limited",null,"GENERAL SERVICE 700 TO 4,999 KW","kW"]
["GENERAL SERVICE DEMAND BILLED (50 KW AND ABOVE) [GSD]",null,null,null,null,null,null,null,"Rate Rider for Deferral/Variance Account Disposition (2013) - effective until April 30, 2014",null,null,null,null,null,null,null,null,null,null,null,null,null,null,null,null,null,"Layout fees",null,null,null,null,null,null,null,null,null,null,"Innisfil Hydro Distribution Systems Limited","Innisfil Hydro Distribution Systems Limited",null,"GENERAL SERVICE DEMAND BILLED (50 KW AND ABOVE) [GSD]","kW"]
["GENERAL SERVICE ENERGY BILLED (LESS THAN 50 KW) [GSE-METERED]",null,null,null,null,null,null,null,"Rate Rider for Deferral/Variance Account Disposition (2014) - effective until April 28, 2016",null,null,null,null,null,null,null,null,null,null,null,null,null,null,null,null,null,"Meter dispute charge plus Measurement Canada fees (if meter found correct)",null,null,null,null,null,null,null,null,null,null,"Kenora Hydro Electric Corporation Ltd.","Kenora Hydro Electric Corporation Ltd.",null,"GENERAL SERVICE ENERGY BILLED (LESS THAN 50 KW) [GSE-METERED]","kWh"]
["GENERAL SERVICE ENERGY BILLED (LESS THAN TO 50 KW) [GSE-UNMETERED]",null,null,null,null,null,null,null,"Rate Rider for Deferral/Variance Account Disposition (2014) - effective until April 30, 2015",null,null,null,null,null,null,null,null,null,null,null,null,null,null,null,null,null,"Meter Interrogation Charge",null,null,null,null,null,null,null,null,null,null,"Kingston Hydro Corporation","Kingston Hydro Corporation",null,"GENERAL SERVICE ENERGY BILLED (LESS THAN TO 50 KW) [GSE-UNMETERED]","kWh"]
["GENERAL SERVICE EQUAL TO OR GREATER THAN 1,500 KW",null,null,null,null,null,null,null,"Rate Rider for Deferral/Variance Account Disposition (2014) - effective until December 31, 2014",null,null,null,null,null,null,null,null,null,null,null,null,null,null,null,null,null,"Missed Service Appointment",null,null,null,null,null,null,null,null,null,null,"Kitchener-Wilmot Hydro Inc.","Kitchener-Wilmot Hydro Inc.",null,"GENERAL SERVICE EQUAL TO OR GREATER THAN 1,500 KW","kW"]
["GENERAL SERVICE EQUAL TO OR GREATER THAN 1,500 KW - INTERVAL METERED",null,null,null,null,null,null,null,"Rate Rider for Deferral/Variance Account Disposition (2014) - effective until December 31, 2015",null,null,null,null,null,null,null,null,null,null,null,null,null,null,null,null,null,"Norfolk Pole Rentals – Billed",null,null,null,null,null,null,null,null,null,null,"Lakefront Utilities Inc.","Lakefront Utilities Inc.",null,"GENERAL SERVICE EQUAL TO OR GREATER THAN 1,500 KW - INTERVAL METERED","kW"]
["GENERAL SERVICE GREATER THAN 1,000 KW",null,null,null,null,null,null,null,"Rate Rider for Deferral/Variance Account Dispositon (2012) - effective until April 30, 2016",null,null,null,null,null,null,null,null,null,null,null,null,null,null,null,null,null,"Optional Interval/TOU Meter charge $/month",null,null,null,null,null,null,null,null,null,null,"Lakeland Power Distribution Ltd.","Lakeland Power Distribution Ltd.",null,"GENERAL SERVICE GREATER THAN 1,000 KW","kW"]
["GENERAL SERVICE GREATER THAN 50 kW - WMP",null,null,null,null,null,null,null,"Rate Rider for Disposition of Accounting Changes Under CGAAP Account 1576 \n      - effective until April 30, 2016",null,null,null,null,null,null,null,null,null,null,null,null,null,null,null,null,null,"Overtime Locate",null,null,null,null,null,null,null,null,null,null,"London Hydro Inc.","London Hydro Inc.",null,"GENERAL SERVICE GREATER THAN 50 kW - WMP","kW"]
["GENERAL SERVICE INTERMEDIATE 1,000 TO 4,999 KW",null,null,null,null,null,null,null,"Rate Rider for Disposition of Deferral/Variance Accounts (2010) - effective until December 31, 2014",null,null,null,null,null,null,null,null,null,null,null,null,null,null,null,null,null,"Owner Requested Disconnection/Reconnection – after regular hours",null,null,null,null,null,null,null,null,null,null,"Midland Power Utility Corporation","Midland Power Utility Corporation",null,"GENERAL SERVICE INTERMEDIATE 1,000 TO 4,999 KW","kW"]
["GENERAL SERVICE INTERMEDIATE RATE CLASS 1,000 TO 4,999 KW (FORMERLY GENERAL SERVICE > 50 KW CUSTOMERS)",null,null,null,null,null,null,null,"Rate Rider for Disposition of Deferral/Variance Accounts (2011) - effective until April 30, 2015",null,null,null,null,null,null,null,null,null,null,null,null,null,null,null,null,null,"Owner Requested Disconnection/Reconnection – during regular hours",null,null,null,null,null,null,null,null,null,null,"Milton Hydro Distribution Inc.","Milton Hydro Distribution Inc.",null,"GENERAL SERVICE INTERMEDIATE RATE CLASS 1,000 TO 4,999 KW (FORMERLY GENERAL SERVICE > 50 KW CUSTOMERS)","kW"]
["GENERAL SERVICE INTERMEDIATE RATE CLASS 1,000 TO 4,999 KW (FORMERLY LARGE USE CUSTOMERS)",null,null,null,null,null,null,null,"Rate Rider for Disposition of Deferral/Variance Accounts (2011) - effective until April 30, 2016",null,null,null,null,null,null,null,null,null,null,null,null,null,null,null,null,null,"Returned cheque (plus bank charges)",null,null,null,null,null,null,null,null,null,null,"Newmarket - Tay Power Distribution Ltd.","Newmarket - Tay Power Distribution Ltd.",null,"GENERAL SERVICE INTERMEDIATE RATE CLASS 1,000 TO 4,999 KW (FORMERLY LARGE USE CUSTOMERS)","kW"]
["GENERAL SERVICE LESS THAN 50 KW",null,null,null,null,null,null,null,"Rate Rider for Disposition of Deferral/Variance Accounts (2012) - effective until April 30, 2014",null,null,null,null,null,null,null,null,null,null,null,null,null,null,null,null,null,"Rural system expansion / line connection fee",null,null,null,null,null,null,null,null,null,null,"Niagara Peninsula Energy Inc.","Niagara Peninsula Energy Inc.",null,"GENERAL SERVICE LESS THAN 50 KW","kWh"]
["GENERAL SERVICE LESS THAN 50 KW - SINGLE PHASE ENERGY-BILLED [G1]",null,null,null,null,null,null,null,"Rate Rider for Disposition of Deferral/Variance Accounts (2012) - effective until April 30, 2015",null,null,null,null,null,null,null,null,null,null,null,null,null,null,null,null,null,"Same Day Open Trench",null,null,null,null,null,null,null,null,null,null,"Niagara-on-the-Lake Hydro Inc.","Niagara-on-the-Lake Hydro Inc.",null,"GENERAL SERVICE LESS THAN 50 KW - SINGLE PHASE ENERGY-BILLED [G1]","kWh"]
["GENERAL SERVICE LESS THAN 50 KW - THREE PHASE ENERGY-BILLED [G3]",null,null,null,null,null,null,null,"Rate Rider for Disposition of Deferral/Variance Accounts (2012) - effective until April 30, 2016",null,null,null,null,null,null,null,null,null,null,null,null,null,null,null,null,null,"Scheduled Day Open Trench",null,null,null,null,null,null,null,null,null,null,"Norfolk Power Distribution Inc.","Norfolk Power Distribution Inc.",null,"GENERAL SERVICE LESS THAN 50 KW - THREE PHASE ENERGY-BILLED [G3]","kWh"]
["GENERAL SERVICE LESS THAN 50 KW - TRANSMISSION CLASS ENERGY-BILLED [T]",null,null,null,null,null,null,null,"Rate Rider for Disposition of Deferral/Variance Accounts (2012) - effective until August 31, 2014",null,null,null,null,null,null,null,null,null,null,null,null,null,null,null,null,null,"Service call – after regular hours",null,null,null,null,null,null,null,null,null,null,"North Bay Hydro Distribution Limited","North Bay Hydro Distribution Limited",null,"GENERAL SERVICE LESS THAN 50 KW - TRANSMISSION CLASS ENERGY-BILLED [T]","kWh"]
["GENERAL SERVICE LESS THAN 50 KW - URBAN ENERGY-BILLED [UG]",null,null,null,null,null,null,null,"Rate Rider for Disposition of Deferral/Variance Accounts (2012) - effective until December 31, 2015",null,null,null,null,null,null,null,null,null,null,null,null,null,null,null,null,null,"Service call – customer owned equipment",null,null,null,null,null,null,null,null,null,null,"Northern Ontario Wires Inc.","Northern Ontario Wires Inc.",null,"GENERAL SERVICE LESS THAN 50 KW - URBAN ENERGY-BILLED [UG]","kWh"]
["GENERAL SERVICE SINGLE PHASE - G1",null,null,null,null,null,null,null,"Rate Rider for Disposition of Deferral/Variance Accounts (2012) - effective until December 31, 2016 \n      Applicable only in the former service area of Clinton Power",null,null,null,null,null,null,null,null,null,null,null,null,null,null,null,null,null,"Service Call – Customer-owned Equipment – After Regular Hours",null,null,null,null,null,null,null,null,null,null,"Oakville Hydro Electricity Distribution Inc.","Oakville Hydro Electricity Distribution Inc.",null,"GENERAL SERVICE SINGLE PHASE - G1","kW"]
["GENERAL SERVICE THREE PHASE - G3",null,null,null,null,null,null,null,"Rate Rider for Disposition of Deferral/Variance Accounts (2012) – effective until December 31, 2016 \n      Applicable only in the former service area of Clinton Power",null,null,null,null,null,null,null,null,null,null,null,null,null,null,null,null,null,"Service Call – Customer-owned Equipment – During Regular Hours",null,null,null,null,null,null,null,null,null,null,"Orangeville Hydro Limited","Orangeville Hydro Limited",null,"GENERAL SERVICE THREE PHASE - G3","kW"]
["INTERMEDIATE USERS",null,null,null,null,null,null,null,"Rate Rider for Disposition of Deferral/Variance Accounts (2012) - effective until January 31, 2014",null,null,null,null,null,null,null,null,null,null,null,null,null,null,null,null,null,"Service Charge for onsite interrogation of interval meter due to customer phone line failure - required weekly until line repaired $ 6",null,null,null,null,null,null,null,null,null,null,"Orillia Power Distribution Corporation","Orillia Power Distribution Corporation",null,"INTERMEDIATE USERS","kW"]
["INTERMEDIATE WITH SELF GENERATION",null,null,null,null,null,null,null,"Rate Rider for Disposition of Deferral/Variance Accounts (2012) - effective until June 30, 2014",null,null,null,null,null,null,null,null,null,null,null,null,null,null,null,null,null,"Service Layout - Commercial",null,null,null,null,null,null,null,null,null,null,"Oshawa PUC Networks Inc.","Oshawa PUC Networks Inc.",null,"INTERMEDIATE WITH SELF GENERATION","kW"]
["LARGE USE",null,null,null,null,null,null,null,"Rate Rider for Disposition of Deferral/Variance Accounts (2013) - Applicable only to \n      Wholesale Market Participants - effective until April 30, 2015",null,null,null,null,null,null,null,null,null,null,null,null,null,null,null,null,null,"Service Layout - ResidentiaI",null,null,null,null,null,null,null,null,null,null,"Ottawa River Power Corporation","Ottawa River Power Corporation",null,"LARGE USE","kW"]
["LARGE USE - 3TS",null,null,null,null,null,null,null,"Rate Rider for Disposition of Deferral/Variance Accounts (2013) - effective until April 30, 2014",null,null,null,null,null,null,null,null,null,null,null,null,null,null,null,null,null,"Special Billing Service (sub-metering charge per meter)",null,null,null,null,null,null,null,null,null,null,"Parry Sound Power Corporation","Parry Sound Power Corporation",null,"LARGE USE - 3TS","kW"]
["LARGE USE - FORD ANNEX",null,null,null,null,null,null,null,"Rate Rider for Disposition of Deferral/Variance Accounts (2013) - effective until April 30, 2015",null,null,null,null,null,null,null,null,null,null,null,null,null,null,null,null,null,"Special meter reads",null,null,null,null,null,null,null,null,null,null,"Peterborough Distribution Incorporated","Peterborough Distribution Incorporated",null,"LARGE USE - FORD ANNEX","kW"]
["LARGE USE - REGULAR",null,null,null,null,null,null,null,"Rate Rider for Disposition of Deferral/Variance Accounts (2013) - effective until April 30, 2015 \n      - not applicable to Wholesale Market Participants",null,null,null,null,null,null,null,null,null,null,null,null,null,null,null,null,null,"Specific Charge for Access to the Power Poles - $/pole/year",null,null,null,null,null,null,null,null,null,null,"PowerStream Inc.","PowerStream Inc.",null,"LARGE USE - REGULAR","kW"]
["LARGE USE > 5000 KW",null,null,null,null,null,null,null,"Rate Rider for Disposition of Deferral/Variance Accounts (2013) - effective until April 30, 2017",null,null,null,null,null,null,null,null,null,null,null,null,null,null,null,null,null,"Specific Charge for Bell Canada Access to the Power Poles – per pole/year",null,null,null,null,null,null,null,null,null,null,"PUC Distribution Inc.","PUC Distribution Inc.",null,"LARGE USE > 5000 KW","kW"]
["microFIT",null,null,null,null,null,null,null,"Rate Rider for Disposition of Deferral/Variance Accounts (2013) - effective until August 31, 2014",null,null,null,null,null,null,null,null,null,null,null,null,null,null,null,null,null,"Switching for company maintenance – Charge based on Time and Materials",null,null,null,null,null,null,null,null,null,null,"Renfrew Hydro Inc.","Renfrew Hydro Inc.",null,"microFIT","$"]
["RESIDENTIAL",null,null,null,null,null,null,null,"Rate Rider for Disposition of Deferral/Variance Accounts (2013) - effective until December 31, 2014",null,null,null,null,null,null,null,null,null,null,null,null,null,null,null,null,null,"Temporary Service – Install & remove – overhead – no transformer",null,null,null,null,null,null,null,null,null,null,"Rideau St. Lawrence Distribution Inc.","Rideau St. Lawrence Distribution Inc.",null,"RESIDENTIAL","kWh"]
["RESIDENTIAL - HENSALL",null,null,null,null,null,null,null,"Rate Rider for Disposition of Deferral/Variance Accounts (2013) - effective until May 31, 2014",null,null,null,null,null,null,null,null,null,null,null,null,null,null,null,null,null,"Temporary Service – Install & remove – overhead – with transformer",null,null,null,null,null,null,null,null,null,null,"Sioux Lookout Hydro Inc.","Sioux Lookout Hydro Inc.",null,"RESIDENTIAL - HENSALL","kWh"]
["RESIDENTIAL - HIGH DENSITY [R1]",null,null,null,null,null,null,null,"Rate Rider for Disposition of Deferral/Variance Accounts (2014) - effective until December 31, 2015",null,null,null,null,null,null,null,null,null,null,null,null,null,null,null,null,null,"Temporary Service – Install & remove – underground – no transformer",null,null,null,null,null,null,null,null,null,null,"St. Thomas Energy Inc.","St. Thomas Energy Inc.",null,"RESIDENTIAL - HIGH DENSITY [R1]","kWh"]
["RESIDENTIAL - LOW DENSITY [R2]",null,null,null,null,null,null,null,"Rate Rider for Disposition of Deferred PILs Variance Account 1562 - effective until March 31, 2016",null,null,null,null,null,null,null,null,null,null,null,null,null,null,null,null,null,"Temporary service install & remove – overhead – no transformer",null,null,null,null,null,null,null,null,null,null,"Thunder Bay Hydro Electricity Distribution Inc.","Thunder Bay Hydro Electricity Distribution Inc.",null,"RESIDENTIAL - LOW DENSITY [R2]","kWh"]
["RESIDENTIAL - MEDIUM DENSITY [R1]",null,null,null,null,null,null,null,"Rate Rider for Disposition of Deferred PILs Variance Account 1562 (2012) - effective until April 30, 2015",null,null,null,null,null,null,null,null,null,null,null,null,null,null,null,null,null,"Temporary Service Install & Remove – Overhead – With Transformer",null,null,null,null,null,null,null,null,null,null,"Tillsonburg Hydro Inc.","Tillsonburg Hydro Inc.",null,"RESIDENTIAL - MEDIUM DENSITY [R1]","kWh"]
["RESIDENTIAL - NORMAL DENSITY [R2]",null,null,null,null,null,null,null,"Rate Rider for Disposition of Deferred PILs Variance Account 1562 (2012) - effective until April 30, 2016",null,null,null,null,null,null,null,null,null,null,null,null,null,null,null,null,null,"Temporary Service Install & Remove – Underground – No Transformer",null,null,null,null,null,null,null,null,null,null,"Toronto Hydro-Electric System Limited","Toronto Hydro-Electric System Limited",null,"RESIDENTIAL - NORMAL DENSITY [R2]","kWh"]
["RESIDENTIAL - TIME OF USE",null,null,null,null,null,null,null,"Rate Rider for Disposition of Deferred PILs Variance Account 1562 (2nd Installment - 2012) \n      - effective until April 30, 2016",null,null,null,null,null,null,null,null,null,null,null,null,null,null,null,null,null,"Temporary service installation and removal – overhead – no transformer",null,null,null,null,null,null,null,null,null,null,"Veridian Connections Inc.","Veridian Connections Inc.",null,"RESIDENTIAL - TIME OF USE","kWh"]
["RESIDENTIAL - URBAN [UR]",null,null,null,null,null,null,null,"Rate Rider for Disposition of Deferred PILs Variance Account 1562 (per connection) (2012) \n      - effective until April 30, 2015",null,null,null,null,null,null,null,null,null,null,null,null,null,null,null,null,null,"Temporary service installation and removal – overhead – with transformer",null,null,null,null,null,null,null,null,null,null,"Wasaga Distribution Inc.","Wasaga Distribution Inc.",null,"RESIDENTIAL - URBAN [UR]","kWh"]
["RESIDENTIAL REGULAR",null,null,null,null,null,null,null,"Rate Rider for Disposition of Deferred PILs Variance Account 1562 (per connection) (2012) \n      - effective until April 30, 2016",null,null,null,null,null,null,null,null,null,null,null,null,null,null,null,null,null,"Temporary service installation and removal – underground – no transformer",null,null,null,null,null,null,null,null,null,null,"Waterloo North Hydro Inc.","Waterloo North Hydro Inc.",null,"RESIDENTIAL REGULAR","kWh"]
["RESIDENTIAL SUBURBAN",null,null,null,null,null,null,null,"Rate Rider for Disposition of Global Adjustment Sub-Account (2011)  - effective until April 30, 2015 \n      Applicable only for Non-RPP Customers",null,null,null,null,null,null,null,null,null,null,null,null,null,null,null,null,null,null,null,null,null,null,null,null,null,null,null,null,"Welland Hydro-Electric System Corp.","Welland Hydro-Electric System Corp.",null,"RESIDENTIAL SUBURBAN","kWh"]
["RESIDENTIAL SUBURBAN SEASONAL",null,null,null,null,null,null,null,"Rate Rider for Disposition of Global Adjustment Sub-Account (2011) - effective until April 30, 2016 \n      Applicable only for Non-RPP Customers",null,null,null,null,null,null,null,null,null,null,null,null,null,null,null,null,null,null,null,null,null,null,null,null,null,null,null,null,"Wellington North Power Inc.","Wellington North Power Inc.",null,"RESIDENTIAL SUBURBAN SEASONAL","kWh"]
["RESIDENTIAL SUBURBAN YEAR ROUND",null,null,null,null,null,null,null,"Rate Rider for Disposition of Global Adjustment Sub-Account (2012) - effective until April 30, 2014 \n      Applicable only for Non-RPP Customers",null,null,null,null,null,null,null,null,null,null,null,null,null,null,null,null,null,null,null,null,null,null,null,null,null,null,null,null,"West Coast Huron Energy Inc.","West Coast Huron Energy Inc.",null,"RESIDENTIAL SUBURBAN YEAR ROUND","kWh"]
["RESIDENTIAL URBAN",null,null,null,null,null,null,null,"Rate Rider for Disposition of Global Adjustment Sub-Account (2012) - effective until April 30, 2015 \n      Applicable only for Non-RPP Customers",null,null,null,null,null,null,null,null,null,null,null,null,null,null,null,null,null,null,null,null,null,null,null,null,null,null,null,null,"Westario Power Inc.","Westario Power Inc.",null,"RESIDENTIAL URBAN","kWh"]
["RESIDENTIAL URBAN YEAR-ROUND",null,null,null,null,null,null,null,"Rate Rider for Disposition of Global Adjustment Sub-Account (2012) - effective until April 30, 2015 \n      Applicatble only for Non-RPP Customers",null,null,null,null,null,null,null,null,null,null,null,null,null,null,null,null,null,null,null,null,null,null,null,null,null,null,null,null,"Whitby Hydro Electric Corporation","Whitby Hydro Electric Corporation",null,"RESIDENTIAL URBAN YEAR-ROUND","kWh"]
["SEASONAL RESIDENTIAL",null,null,null,null,null,null,null,"Rate Rider for Disposition of Global Adjustment Sub-Account (2012) - effective until April 30, 2016 \n      Applicable only for Non-RPP Customers",null,null,null,null,null,null,null,null,null,null,null,null,null,null,null,null,null,null,null,null,null,null,null,null,null,null,null,null,"Woodstock Hydro Services Inc.","Woodstock Hydro Services Inc.",null,"SEASONAL RESIDENTIAL","kWh"]
["SEASONAL RESIDENTIAL - HIGH DENSITY [R3]",null,null,null,null,null,null,null,"Rate Rider for Disposition of Global Adjustment Sub-Account (2012) - effective until January 31, 2014. \n      Applicable only for Non-RPP Customers",null,null,null,null,null,null,null,null,null,null,null,null,null,null,null,null,null,null,null,null,null,null,null,null,null,null,null,null,null,null,null,"SEASONAL RESIDENTIAL - HIGH DENSITY [R3]","kWh"]
["SEASONAL RESIDENTIAL - NORMAL DENSITY [R4]",null,null,null,null,null,null,null,"Rate Rider for Disposition of Global Adjustment Sub-Account (2012) - effective until June 30, 2014 \n      Applicable only for Non-RPP Customers",null,null,null,null,null,null,null,null,null,null,null,null,null,null,null,null,null,null,null,null,null,null,null,null,null,null,null,null,null,null,null,"SEASONAL RESIDENTIAL - NORMAL DENSITY [R4]","kWh"]
["SENTINEL LIGHTING",null,null,null,null,null,null,null,"Rate Rider for Disposition of Global Adjustment Sub-Account (2012) Applicable only for Non-RPP Customers \n      - effective until August 31, 2014",null,null,null,null,null,null,null,null,null,null,null,null,null,null,null,null,null,null,null,null,null,null,null,null,null,null,null,null,null,null,null,"SENTINEL LIGHTING","kW"]
["SMALL COMMERCIAL AND USL - PER CONNECTION",null,null,null,null,null,null,null,"Rate Rider for Disposition of Global Adjustment Sub-Account (2012) Applicable only to Non-RPP Customers \n      - effective until August 31, 2014",null,null,null,null,null,null,null,null,null,null,null,null,null,null,null,null,null,null,null,null,null,null,null,null,null,null,null,null,null,null,null,"SMALL COMMERCIAL AND USL - PER CONNECTION","kWh"]
["SMALL COMMERCIAL AND USL - PER METER",null,null,null,null,null,null,null,"Rate Rider for Disposition of Global Adjustment Sub-Account (2013) - effective until April 30, 2014 \n      Applicable only for Non-RPP Customers",null,null,null,null,null,null,null,null,null,null,null,null,null,null,null,null,null,null,null,null,null,null,null,null,null,null,null,null,null,null,null,"SMALL COMMERCIAL AND USL - PER METER","kWh"]
["STANDARD A GENERAL SERVICE AIR ACCESS",null,null,null,null,null,null,null,"Rate Rider for Disposition of Global Adjustment Sub-Account (2013) - effective until April 30, 2015 \n      Applicable only for Non-RPP Customers",null,null,null,null,null,null,null,null,null,null,null,null,null,null,null,null,null,null,null,null,null,null,null,null,null,null,null,null,null,null,null,"STANDARD A GENERAL SERVICE AIR ACCESS","kWh"]
["STANDARD A GENERAL SERVICE ROAD/RAIL",null,null,null,null,null,null,null,"Rate Rider for Disposition of Global Adjustment Sub-Account (2013) - effective until April 30, 2015 \n      Applicable only for Non-RPP Customers and excluding Wholesale Market Participants",null,null,null,null,null,null,null,null,null,null,null,null,null,null,null,null,null,null,null,null,null,null,null,null,null,null,null,null,null,null,null,"STANDARD A GENERAL SERVICE ROAD/RAIL","kWh"]
["STANDARD A GRID CONNECTED",null,null,null,null,null,null,null,"Rate Rider for Disposition of Global Adjustment Sub-Account (2013) - effective until April 30, 2017 \n      Applicable only for Non-RPP Customers",null,null,null,null,null,null,null,null,null,null,null,null,null,null,null,null,null,null,null,null,null,null,null,null,null,null,null,null,null,null,null,"STANDARD A GRID CONNECTED","kWh"]
["STANDARD A RESIDENTIAL AIR ACCESS",null,null,null,null,null,null,null,"Rate Rider For Disposition of Global Adjustment Sub-Account (2013) - effective until August 31, 2014 \n      Applicable only for Non-RPP Customers",null,null,null,null,null,null,null,null,null,null,null,null,null,null,null,null,null,null,null,null,null,null,null,null,null,null,null,null,null,null,null,"STANDARD A RESIDENTIAL AIR ACCESS","kWh"]
["STANDARD A RESIDENTIAL ROAD/RAIL",null,null,null,null,null,null,null,"Rate Rider for Disposition of Global Adjustment Sub-Account (2013) - effective until December 31, 2014 \n      Applicable only for Non-RPP Customers",null,null,null,null,null,null,null,null,null,null,null,null,null,null,null,null,null,null,null,null,null,null,null,null,null,null,null,null,null,null,null,"STANDARD A RESIDENTIAL ROAD/RAIL","kWh"]
["STANDBY - GENERAL SERVICE 1,000 - 5,000 KW",null,null,null,null,null,null,null,"Rate Rider for Disposition of Global Adjustment Sub-Account (2013) - effective until May 31, 2014 \n      Applicable only for Non-RPP Customers",null,null,null,null,null,null,null,null,null,null,null,null,null,null,null,null,null,null,null,null,null,null,null,null,null,null,null,null,null,null,null,"STANDBY - GENERAL SERVICE 1,000 - 5,000 KW","kW"]
["STANDBY - GENERAL SERVICE 50 - 1,000 KW",null,null,null,null,null,null,null,"Rate Rider for Disposition of Global Adjustment Sub-Account (2014) - effective until December 31, 2014. \n      Applicable only for Non-RPP - Class B Customers",null,null,null,null,null,null,null,null,null,null,null,null,null,null,null,null,null,null,null,null,null,null,null,null,null,null,null,null,null,null,null,"STANDBY - GENERAL SERVICE 50 - 1,000 KW","kW"]
["STANDBY - LARGE USE",null,null,null,null,null,null,null,"Rate Rider for Disposition of Global Adjustment Sub-Account (2014) - effective until December 31, 2014. \n      Applicable only for Non-RPP Customers",null,null,null,null,null,null,null,null,null,null,null,null,null,null,null,null,null,null,null,null,null,null,null,null,null,null,null,null,null,null,null,"STANDBY - LARGE USE","kW"]
["STANDBY DISTRIBUTION SERVICE",null,null,null,null,null,null,null,"Rate Rider for Disposition of Global Adjustment Sub-Account (2014) - effective until December 31, 2014. \n      Applicable only for Non-RPP Customers - Class A Customers",null,null,null,null,null,null,null,null,null,null,null,null,null,null,null,null,null,null,null,null,null,null,null,null,null,null,null,null,null,null,null,"STANDBY DISTRIBUTION SERVICE","kW"]
["STANDBY POWER",null,null,null,null,null,null,null,"Rate Rider for Disposition of Global Adjustment Sub-Account (2014) - effective until December 31, 2014. \n      Applicable only for Non-RPP Customers - Interval Metered",null,null,null,null,null,null,null,null,null,null,null,null,null,null,null,null,null,null,null,null,null,null,null,null,null,null,null,null,null,null,null,"STANDBY POWER","kW"]
["STANDBY POWER - APPROVED ON AN INTERIM BASIS",null,null,null,null,null,null,null,"Rate Rider for Disposition of Global Adjustment Sub-Account (2014) - effective until December 31, 2014. \n      Applicable only for Non-RPP Customers - Non Interval Metered",null,null,null,null,null,null,null,null,null,null,null,null,null,null,null,null,null,null,null,null,null,null,null,null,null,null,null,null,null,null,null,"STANDBY POWER - APPROVED ON AN INTERIM BASIS","kW"]
["STANDBY POWER GENERAL SERVICE 1,500 TO 4,999 KW",null,null,null,null,null,null,null,"Rate Rider for Disposition of Global Adjustment Sub-Account (2014) \n      - effective until December 31, 2015. Applicable only for Non-RPP Customers.  ",null,null,null,null,null,null,null,null,null,null,null,null,null,null,null,null,null,null,null,null,null,null,null,null,null,null,null,null,null,null,null,"STANDBY POWER GENERAL SERVICE 1,500 TO 4,999 KW","kW"]
["STANDBY POWER GENERAL SERVICE 50 TO 1,499 KW",null,null,null,null,null,null,null,"Rate Rider for Disposition of Post Retirement Actuarial Gain - effective until March 31, 2025",null,null,null,null,null,null,null,null,null,null,null,null,null,null,null,null,null,null,null,null,null,null,null,null,null,null,null,null,null,null,null,"STANDBY POWER GENERAL SERVICE 50 TO 1,499 KW","kW"]
["STANDBY POWER GENERAL SERVICE LARGE USE",null,null,null,null,null,null,null,"Rate Rider for Disposition of Residual Hisotrical Smart Meter Costs - effective until April 30, 2015",null,null,null,null,null,null,null,null,null,null,null,null,null,null,null,null,null,null,null,null,null,null,null,null,null,null,null,null,null,null,null,"STANDBY POWER GENERAL SERVICE LARGE USE","kW"]
["STREET LIGHTING",null,null,null,null,null,null,null,"Rate Rider for Disposition of Residual Hisotrical Smart Meter Costs - effective until April 30, 2017",null,null,null,null,null,null,null,null,null,null,null,null,null,null,null,null,null,null,null,null,null,null,null,null,null,null,null,null,null,null,null,"STREET LIGHTING","kW"]
["SUB TRANSMISSION [ST]",null,null,null,null,null,null,null,"Rate Rider for Disposition of Residual Historical Smart Meter Costs - effective until April 30, 2014",null,null,null,null,null,null,null,null,null,null,null,null,null,null,null,null,null,null,null,null,null,null,null,null,null,null,null,null,null,null,null,"SUB TRANSMISSION [ST]","kW"]
["UNMETERED SCATTERED LOAD",null,null,null,null,null,null,null,"Rate Rider for Disposition of Residual Historical Smart Meter Costs - effective until April 30, 2016",null,null,null,null,null,null,null,null,null,null,null,null,null,null,null,null,null,null,null,null,null,null,null,null,null,null,null,null,null,null,null,"UNMETERED SCATTERED LOAD","kWh"]
["URBAN GENERAL SERVICE DEMAND BILLED (50 KW AND ABOVE) [UGD]",null,null,null,null,null,null,null,"Rate Rider for Disposition of Residual Historical Smart Meter Costs - effective until August 31, 2014",null,null,null,null,null,null,null,null,null,null,null,null,null,null,null,null,null,null,null,null,null,null,null,null,null,null,null,null,null,null,null,"URBAN GENERAL SERVICE DEMAND BILLED (50 KW AND ABOVE) [UGD]","kW"]
["URBAN GENERAL SERVICE ENERGY BILLED (LESS THAN 50 KW) [UGE]",null,null,null,null,null,null,null,"Rate Rider for Disposition of Residual Historical Smart Meter Costs - effective until August 31, 2015",null,null,null,null,null,null,null,null,null,null,null,null,null,null,null,null,null,null,null,null,null,null,null,null,null,null,null,null,null,null,null,"URBAN GENERAL SERVICE ENERGY BILLED (LESS THAN 50 KW) [UGE]","kWh"]
["WESTPORT SEWAGE TREATMENT PLANT",null,null,null,null,null,null,null,"Rate Rider for Disposition of Residual Historical Smart Meter Costs - effective until December 31, 2014",null,null,null,null,null,null,null,null,null,null,null,null,null,null,null,null,null,null,null,null,null,null,null,null,null,null,null,null,null,null,null,"WESTPORT SEWAGE TREATMENT PLANT","kW"]
["YEAR-ROUND RESIDENTIAL - R2",null,null,null,null,null,null,null,"Rate Rider for Disposition of Residual Historical Smart Meter Costs – effective until December 31, 2014",null,null,null,null,null,null,null,null,null,null,null,null,null,null,null,null,null,null,null,null,null,null,null,null,null,null,null,null,null,null,null,"YEAR-ROUND RESIDENTIAL - R2","kWh"]
[null,null,null,null,null,null,null,null,"Rate Rider for Disposition of Residual Historical Smart Meter Costs - effective until December 31, 2015"]
[null,null,null,null,null,null,null,null,"Rate Rider for Disposition of Residual Historical Smart Meter Costs - effective until December 31, 2016"]
[null,null,null,null,null,null,null,null,"Rate Rider for Disposition of Residual Historical Smart Meter Costs - effective until October 31, 2014"]
[null,null,null,null,null,null,null,null,"Rate Rider for Disposition of Residual Historical Smart Meter Costs - effective until September 30, 2014"]
[null,null,null,null,null,null,null,null,"Rate Rider for Disposition of Residual Historical Smart Meter Costs - Non-Interval Metered \n      - effective until April 30, 2014"]
[null,null,null,null,null,null,null,null,"Rate Rider for Disposition of Residual Historical Smart Meter Costs 2 - in effect until the effective date\n      of the next cost of service-based rate order"]
[null,null,null,null,null,null,null,null,"Rate Rider for Disposition of Residual Historical Smart Meter Costs 3 - in effect until the effective date of\n      the next cost of service-based rate order"]
[null,null,null,null,null,null,null,null,"Rate Rider for Disposition of Residual Incremental Historical Smart Meter Costs \n      - effective until August 31, 2015"]
[null,null,null,null,null,null,null,null,"Rate Rider for Disposition of Stranded Meter costs - effective until April 30, 2015"]
[null,null,null,null,null,null,null,null,"Rate Rider for Disposition of Stranded Meter Costs - effective until April 30, 2016"]
[null,null,null,null,null,null,null,null,"Rate Rider for Disposition of Stranded Meter Costs - effective until April 30, 2017"]
[null,null,null,null,null,null,null,null,"Rate Rider for Global Adjustment Sub Account Disposition - effective until April 30, 2016 \n      Applicable only for Non RPP Customers"]
[null,null,null,null,null,null,null,null,"Rate Rider for Global Adjustment Sub-Account Disposition (2014) - effective until April 28, 2016 \n      Applicable only for Non-RPP Customers"]
[null,null,null,null,null,null,null,null,"Rate Rider for Global Adjustment Sub-Account Disposition (2014) - effective until April 30, 2015 \n      Applicable only for Non-RPP Customers"]
[null,null,null,null,null,null,null,null,"Rate Rider for Global Adjustment Sub-Account Disposition (2014) - effective until December 30, 2015 \n      Applicable only for Non-RPP Customers"]
[null,null,null,null,null,null,null,null,"Rate Rider for Global Adjustment Sub-Account Disposition (2014) - effective until December 31, 2014 \n      Applicable only for Non-RPP Customers"]
[null,null,null,null,null,null,null,null,"Rate Rider for Global Adjustment Sub-Account Disposition (2014) - effective until December 31, 2015 \n      Applicable only for Non-RPP Customers"]
[null,null,null,null,null,null,null,null,"Rate Rider for Global Adjustment Sub-Account Disposition Applicable only for Non-RPP Customers \n      - effective until April 30, 2015"]
[null,null,null,null,null,null,null,null,"Rate Rider for Incremental Capital - Distribution Volumetric - effective until April 30, 2016"]
[null,null,null,null,null,null,null,null,"Rate Rider for Incremental Capital - Service Charge - effective until April 30, 2016"]
[null,null,null,null,null,null,null,null,"Rate Rider for Incremental Capital (2012) - effective until April 30, 2015"]
[null,null,null,null,null,null,null,null,"Rate Rider for Lost Revenue Adjustment Mechanism Variance Account (LRAMVA) Recovery (2012 CDM Activities) \n      - effective until April 30, 2015"]
[null,null,null,null,null,null,null,null,"Rate Rider for Recover of Residual Historical Smart meter Costs - effective until June 30, 2014"]
[null,null,null,null,null,null,null,null,"Rate Rider for Recovery of CGAAP/CWIP Differential - in effect until December 31, 2016"]
[null,null,null,null,null,null,null,null,"Rate Rider for Recovery of Foregone Revenue - effective until April 30, 2015"]
[null,null,null,null,null,null,null,null,"Rate Rider for Recovery of Forgone Revenue - effective until April 30, 2015"]
[null,null,null,null,null,null,null,null,"Rate Rider for Recovery of Forgone Revenue - effective until December 31, 2014"]
[null,null,null,null,null,null,null,null,"Rate Rider for Recovery of Green Energy Act related costs - effective until December 31, 2014"]
[null,null,null,null,null,null,null,null,"Rate Rider for Recovery of Incremental Capital (2013) - in effect until the effective date of \n      the next cost of service-based rate order"]
[null,null,null,null,null,null,null,null,"Rate Rider for Recovery of Incremental Capital (2013) - in effect until the effective date of \n      the next cost of service-based rate order"]
[null,null,null,null,null,null,null,null,"Rate Rider for Recovery of Incremental Capital (2013) (per connection) - in effect until the effective date of \n      the next cost of service-based rate order"]
[null,null,null,null,null,null,null,null,"Rate Rider for Recovery of Incremental Capital (2013) (per connection)- in effect until the effective date of \n      the next cost of service-based rate order"]
[null,null,null,null,null,null,null,null,"Rate Rider for Recovery of Incremental Capital Costs"]
[null,null,null,null,null,null,null,null,"Rate Rider for Recovery of Incremental Capital Costs - effective until April 30, 2015"]
[null,null,null,null,null,null,null,null,"Rate Rider for Recovery of Incremental Capital Module Costs (2014) - in effect until the effective date\n      of the next cost of service-based rate order"]
[null,null,null,null,null,null,null,null,"Rate Rider for Recovery of Incremental Capital Module Costs (2014) - in effect until the effective date\n      of the next cost of service-based rate order"]
[null,null,null,null,null,null,null,null,"Rate Rider for Recovery of Lost Revenue Adjustment Mechanism ( LRAM)/Shared Savings Mechanism (SSM) (2012) \n      - effective until August 31, 2014"]
[null,null,null,null,null,null,null,null,"Rate Rider for Recovery of Lost Revenue Adjustment Mechanism (2013) \n      - effective until December 31, 2014"]
[null,null,null,null,null,null,null,null,"Rate Rider for Recovery of Lost Revenue Adjustment Mechanism (LRAM) - effective until April 30, 2016"]
[null,null,null,null,null,null,null,null,"Rate Rider for Recovery of Lost Revenue Adjustment Mechanism (LRAM) (pre-2011 CDM Activities) \n      - effective until April 30, 2015"]
[null,null,null,null,null,null,null,null,"Rate Rider for Recovery of Lost Revenue Adjustment Mechanism (LRAM) (pre-2011 CDM Activities) (2013) \n      - effective until April 30, 2015"]
[null,null,null,null,null,null,null,null,"Rate Rider for Recovery of Lost Revenue Adjustment Mechanism (LRAM)/Shared Savings"]
[null,null,null,null,null,null,null,null,"Rate Rider for Recovery of Lost Revenue Adjustment Mechanism (LRAM)/Shared Savings Mechanism \n      (SSM) - effective until December 31, 2018 and applicable in the service area excluding the former \n      service areas of Clinton Power and West Perth Power"]
[null,null,null,null,null,null,null,null,"Rate Rider for Recovery of Lost Revenue Adjustment Mechanism (LRAM)/Shared Savings Mechanism (SSM) - effective until \n      December 31, 2014 and applicable in the service area excluding the former service areas of Clinton Power and West Perth Power"]
[null,null,null,null,null,null,null,null,"Rate Rider for Recovery of Lost Revenue Adjustment Mechanism (LRAM)/Shared Savings Mechanism (SSM) - effective until \n      December 31, 2014 and applicable only in the former service area of Clinton Power"]
[null,null,null,null,null,null,null,null,"Rate Rider for Recovery of Lost Revenue Adjustment Mechanism (LRAM)/Shared Savings Mechanism (SSM) - effective until \n      December 31, 2014 and applicable only in the former service area of West Perth Power"]
[null,null,null,null,null,null,null,null,"Rate Rider for Recovery of Lost Revenue Adjustment Mechanism (LRAM)/Shared Savings Mechanism (SSM) - effective until December 31, 2014 and applicable in the service area excluding the former service area of Clinton Power"]
[null,null,null,null,null,null,null,null,"Rate Rider for Recovery of Lost Revenue Adjustment Mechanism (LRAM)/Shared Savings Mechanism (SSM) \n      - effective until March 31, 2016"]
[null,null,null,null,null,null,null,null,"Rate Rider for Recovery of Lost Revenue Adjustment Mechanism (LRAM)/Shared Savings Mechanism (SSM) (2012) \n      - effective until August 31, 2014"]
[null,null,null,null,null,null,null,null,"Rate Rider for Recovery of Lost Revenue Adjustment Mechanism (LRAM)/Shared Savings Mechanism (SSM) Recovery \n      - effective until April 30, 2015"]
[null,null,null,null,null,null,null,null,"Rate Rider for Recovery of Lost Revenue Adjustment Mechanism Variance Account (LRAMVA) (2014) \n      - effective until April 30, 2015"]
[null,null,null,null,null,null,null,null,"Rate Rider for Recovery of Residual Historical Smart Meter Costs - effective July 1, 2012 - April 30, 2016"]
[null,null,null,null,null,null,null,null,"Rate Rider for Recovery of Smart Meter Incremental Revenue Requirement - effective until the date of \n      the next cost of service-based rate order"]
[null,null,null,null,null,null,null,null,"Rate Rider for Recovery of Smart Meter Incremental Revenue Requirement - effective until the effective \n      date of the next cost of service-based rate order, or October 31, 2017, whichever occurs earlier"]
[null,null,null,null,null,null,null,null,"Rate Rider for Recovery of Smart Meter Incremental Revenue Requirement - in effect until the effective date of \n      the next cost of service-based rate order"]
[null,null,null,null,null,null,null,null,"Rate Rider for Recovery of Smart Meter Incremental Revenue Requirement - Non-Interval Metered - in effect until \n      the effective date of the next cost of service-based rate order"]
[null,null,null,null,null,null,null,null,"Rate Rider for Recovery of Smart Meter Incremental Revenue Requirements - in effect until the effective date \n      of the next cost of service application"]
[null,null,null,null,null,null,null,null,"Rate Rider for Recovery of Smart Meter Stranded Assets - effective until April 30, 2016"]
[null,null,null,null,null,null,null,null,"Rate Rider for Recovery of Storm Damage Costs - effective until August 31, 2017"]
[null,null,null,null,null,null,null,null,"Rate Rider for Recovery of Stranded Assets - effective until April 30, 2016"]
[null,null,null,null,null,null,null,null,"Rate Rider for Recovery of Stranded Meter Assets - effective July 1, 2012 - April 30, 2016"]
[null,null,null,null,null,null,null,null,"Rate Rider for Recovery of Stranded Meter Assets – effective until April 30, 2015"]
[null,null,null,null,null,null,null,null,"Rate Rider for Recovery of Stranded Meter Assets - effective until April 30, 2016"]
[null,null,null,null,null,null,null,null,"Rate Rider for Recovery of Stranded Meter Assets - effective until April 30, 2017"]
[null,null,null,null,null,null,null,null,"Rate Rider for Recovery of Stranded Meter Assets - effective until August 31, 2015"]
[null,null,null,null,null,null,null,null,"Rate Rider for Recovery of Stranded Meter Assets - effective until August 31, 2017"]
[null,null,null,null,null,null,null,null,"Rate Rider for Recovery of Stranded Meter Assets - effective until December 31, 2014"]
[null,null,null,null,null,null,null,null,"Rate Rider for Recovery of Stranded Meter Assets - effective until December 31, 2015"]
[null,null,null,null,null,null,null,null,"Rate Rider for Recovery of Stranded Meter Assets - effective until June 30, 2016"]
[null,null,null,null,null,null,null,null,"Rate Rider for Recovery of Stranded Meter Assets - effective until March 31, 2016"]
[null,null,null,null,null,null,null,null,"Rate Rider for Recovery of Stranded Meter Assets - effective until May 31, 2014"]
[null,null,null,null,null,null,null,null,"Rate Rider for Reversal of Deferral/Variance Account Disposition (2011) - effective until April 30, 2015"]
[null,null,null,null,null,null,null,null,"Rate Rider for Smart Meter Disposition - effective until April 30, 2016"]
[null,null,null,null,null,null,null,null,"Rate Rider for Smart Meter Incremental Revenue Requirement - in effect until the effective date of \n      the next cost of service-based rate order"]
[null,null,null,null,null,null,null,null,"Rate Rider for Smart Metering Entity Charge - effective until October 31, 2018"]
[null,null,null,null,null,null,null,null,"Rate Rider for Stranded Meter Cost Recovery - effective until April 30, 2017"]
[null,null,null,null,null,null,null,null,"Rate Rider for Tax Change"]
[null,null,null,null,null,null,null,null,"Rate Rider for Tax Change - effective until April 30, 2015"]
[null,null,null,null,null,null,null,null,"Rate Rider for Tax Change (2014) - effective until April 30, 2015"]
[null,null,null,null,null,null,null,null,"Retail Transmission Rate - Line and Transformation Connection Service Rate"]
[null,null,null,null,null,null,null,null,"Retail Transmission Rate - Line and Transformation Connection Service Rate - (less than 1,000 kW)"]
[null,null,null,null,null,null,null,null,"Retail Transmission Rate - Line and Transformation Connection Service Rate - Interval Metered"]
[null,null,null,null,null,null,null,null,"Retail Transmission Rate - Line and Transformation Connection Service Rate \n      - Interval Metered (1,000 to 4,999 kW)"]
[null,null,null,null,null,null,null,null,"Retail Transmission Rate - Line and Transformation Connection Service Rate \n      - Interval Metered (less than 1,000 kW)"]
[null,null,null,null,null,null,null,null,"Retail Transmission Rate - Line and Transformation Connection Service Rate \n      - Interval Metered < 1,000 kW"]
[null,null,null,null,null,null,null,null,"Retail Transmission Rate - Line and Transformation Connection Service Rate \n      FOR ALL SERVICE AREAS EXCEPT HENSALL"]
[null,null,null,null,null,null,null,null,"Retail Transmission Rate - Line and Transformation Connection Service Rate\n      - Interval Metered > 1,000 kW"]
[null,null,null,null,null,null,null,null,"Retail Transmission Rate - Line Connection Service Rate"]
[null,null,null,null,null,null,null,null,"Retail Transmission Rate - Network Service Rate"]
[null,null,null,null,null,null,null,null,"Retail Transmission Rate - Network Service Rate - (less than 1,000 kW)"]
[null,null,null,null,null,null,null,null,"Retail Transmission Rate - Network Service Rate - Interval Metered"]
[null,null,null,null,null,null,null,null,"Retail Transmission Rate - Network Service Rate - Interval Metered (1,000 to 4,999 kW)"]
[null,null,null,null,null,null,null,null,"Retail Transmission Rate - Network Service Rate - Interval Metered (less than 1,000 kW)"]
[null,null,null,null,null,null,null,null,"Retail Transmission Rate - Network Service Rate - Interval Metered > 1,000 kW"]
[null,null,null,null,null,null,null,null,"Retail Transmission Rate - Transformation Connection Service Rate"]
[null,null,null,null,null,null,null,null,"Rider for Global Adjustment Sub-Account Disposition (2012) - effective until April 30, 2016 \n      Applicable only for Non-RPP Customers"]
[null,null,null,null,null,null,null,null,"Rural or Remote Electricity Rate Protection Charge (RRRP)"]
[null,null,null,null,null,null,null,null,"Sentinel lights (dusk-to-dawn) connected to unmetered wires will have a flat rate monthly energy charge \nadded to the regular customer bill. Further servicing details are available in the distributor’s Conditions \nof Service."]
[null,null,null,null,null,null,null,null,"Service Charge"]
[null,null,null,null,null,null,null,null,"Service Charge (per connection)"]
[null,null,null,null,null,null,null,null,"Service Charge (per customer)"]
[null,null,null,null,null,null,null,null,"Service Charge (per light)"]
[null,null,null,null,null,null,null,null,"Smart Grid Funding Adder (2014) - in effect until December 31, 2014"]
[null,null,null,null,null,null,null,null,"Smart Meter Disposition Rider"]
[null,null,null,null,null,null,null,null,"Smart Meter Entity Charge"]
[null,null,null,null,null,null,null,null,"Smart Meter Incremental Revenue Requirement Rate Rider"]
[null,null,null,null,null,null,null,null,"Standard Supply Service - Administrative Charge (if applicable)"]
[null,null,null,null,null,null,null,null,"Standby Charge - for a month where standby power is not provided, the charge is based on the applicable \nGeneral Service 50 to 4,999 kW or Large Use Distribution Volumetric Charge applied to the contracted \namount (e.g. Nameplate rating of generating facility)."]
[null,null,null,null,null,null,null,null,"Standby Charge - for a month where standby power is not provided. The charge is applied to the amount of \nreserved load transfer capacity contracted or the amount of monthly peak load displaced by a generating \nfacility"]
[null,null,null,null,null,null,null,null,"Standby Charge - for a month where standby power is not provided. The charge is applied to the contracted \namount (e.g. nameplate rating of the generation facility)."]
[null,null,null,null,null,null,null,null,"Wholesale Market Service Rate"]

{"sheet":"Sheet1","index":13,"n_rows":0,"n_cols":0,"rows_kept":0,"cut":false,"hidden":true,"merged":[]}